Cogmind - Beta 16 @@@ ROGUE MODE // 2025.12.16 @ 02:06:19 Player: H3-MLN Result: Establishing 0b11! Performance ------------- Evolutions (9) 4500 Regions Visited (29) 5800 Robots Destroyed (452) 2260 Value Destroyed (22331) 22331 Prototype IDs (384) 7680 Alien Tech Used (6) 1200 Bonus (67814) 67814 TOTAL SCORE: 111585 Bonus ------- Triggered High Security 2000 Triggered Max Security 1000 High Alert Combat Kills 10373 Follower Combat Kills 23470 Destroyed Unchained 4000 Entered Garrisons 200 Used RIF Installer 500 Network Hubs Disabled 800 Registered with UFD 300 Met Zhirov 300 Built Enhanced Grunts 300 A7 Reached Mainframe 300 Met R17 at Cetus 500 Met R17 at Research 2000 Destroyed MAIN.C Guards 500 Met MAIN.C 5000 Destroyed MAIN.C Shell 5000 Destroyed MAIN.C 10000 Win 3000 Friendly Fire -1729 Cogmind --------- Core Integrity 1491/1600 Matter 13/1050 Energy 266/270 System Corruption 3% Temperature Cool (6) Movement Flying (61) Ox1 Location 0b11 Command Parts ------- > --- POWER (2) -------- Light Angular Momentum Engine Concept Zero-point Core > --- PROPULSION (8) --- Experimental Biomechanical Wings Experimental Biomechanical Wings Experimental Surge Thruster Experimental Surge Thruster Experimental Surge Thruster Concept Fieldthrust Drive (fused) Concept Fieldthrust Drive Concept Fieldthrust Drive > --- UTILITY (13) ----- 2N-1CE's Frost Array Concept Antigrav Storage Unit Concept NT7 Matterbank (fused) Advanced Quantum Shading Machine Experimental Core Analyzer Advanced Weapon Cycler Centrium Medium Armor Plating QV-33N's Drone Shield Concept Matter Streamer QV-33N's Launch Deck (fused) > --- WEAPON (2) ------- Concept Lightning Penetrator Vibroblade > --- INVENTORY (25) --- Zero-point Reactor Experimental Q-thruster Experimental Q-thruster Concept Thermoelectric Network Concept Chromion Battery (800) Concept Chromion Battery (800) Concept NT7 Matterbank (0) Concept Weapon Articulator Femtoactuators Experimental Transmission Jammer Experimental Powered Armor Concept RG22 Armor Improved Potential Cannon Graviton Cannon Concept Miniperforator Concept Smart ZDS Peak State ------------ > --- POWER ------------ Concept Zero-point Core Concept Zero-point Core > --- PROPULSION ------- Experimental Q-thruster Experimental Biomechanical Wings Experimental Biomechanical Wings Experimental Surge Thruster Experimental Surge Thruster Concept Fieldthrust Drive Concept Fieldthrust Drive Concept Fieldthrust Drive > --- UTILITY ---------- 2N-1CE's Frost Array Concept Antigrav Storage Unit Advanced Visual Processing Unit Zeronet Interface Concept Melee Reflex Suite Experimental Core Analyzer Femtoactuators Experimental Transmission Jammer Experimental Reaction Control System Experimental Phase Shifter Concept Network Penetrator Concept Navigation Harness > --- WEAPON ----------- Vibroblade > --- INVENTORY -------- Experimental Q-thruster Experimental Surge Thruster Experimental Surge Thruster Concept Thermoelectric Network Concept Chromion Battery Concept Chromion Battery Concept NT7 Matterbank Concept NT7 Matterbank Concept Weapon Articulator Concept RG22 Armor QV-33N's Drone Shield Concept Matter Streamer Concept Impact Drone Bay Concept Impact Drone Bay QV-33N's Launch Deck Concept Lightning Penetrator Improved Potential Cannon Concept Miniperforator Concept Tiamat Rocket Array Concept Smart ZDS IN-MT5's Pitchfork "Insurrection" [Rating: 288] Favorites ----------- Power Concept Zero-point Core Engine Light Ion Engine Power Core Concept Zero-point Core Reactor Cold Fusion Reactor Propulsion Cooled Cesium-ion Thruster Treads Light Treads Leg Biometal Leg Wheel Armored Wheel Hover Unit Concept Combat Aerolev Unit Flight Unit Cooled Cesium-ion Thruster Utility Experimental Signal Interpreter Device Advanced Sensor Array Storage Huge Storage Unit Processor Experimental Signal Interpreter Hackware Improved Hacking Suite Protection Centrium Medium Armor Plating Weapon Improved Light Cannon Energy Gun Field Laser Energy Cannon Long-range Phase Cannon Ballistic Gun Autogun Ballistic Cannon Improved Light Cannon Launcher Smartbomb Launcher Special Weapon Shield Trident Impact Weapon Heavy Hammer Slashing Weapon Vibroblade Piercing Weapon Kinetic Spear Special Melee Weapon Improved Datajack Build | -11 -10 -10 -9 -9 -9 -9 -6 -6 -6 -6 -5 -5 -5 -5 -4 -4 -4 -4 -4 -4 -4 -4 -3 -3 -3 -2 -2 -1 -1 ------- Run | Yrd Mat Min Mat Sto Rec Scr Fac Was Fac Gar Fac Upp Upp Zhi Pro Fac Was Fac Ext Cet Arc Hub Res Qua Frg Res Tes Acc Com Slots Evolved 18 | . . . 2 . . . 6 . . . 2 . . . . 2 . . . . . . 2 . . 2 . 2 . Power 1 | . . . . . . . 1 . . . . . . . . . . . . . . . . . . . . . . Propulsion 6 | . . . 2 . . . 1 . . . . . . . . . . . . . . . 1 . . 1 . 1 . Utility 11 | . . . . . . . 4 . . . 2 . . . . 2 . . . . . . 1 . . 1 . 1 . Weapon . | . . . . . . . . . . . . . . . . . . . . . . . . . . . . . . Parts Attached 404 | 8 6 3 12 10 2 8 31 5 9 16 5 3 . 7 . 47 2 16 3 1 9 1 23 5 111 9 14 30 8 Power 46 | 1 . . 1 2 . . 5 . . 4 2 . . 1 . 7 . 4 2 . 1 . 1 . 12 . 1 1 1 Engine 13 | 1 . . 1 1 . . 3 . . 1 . . . . . 2 . 1 . . 1 . . . 1 . . . 1 Core 15 | . . . . . . . 2 . . 2 2 . . . . 2 . 1 1 . . . 1 . 3 . 1 . . Reactor 18 | . . . . 1 . . . . . 1 . . . 1 . 3 . 2 1 . . . . . 8 . . 1 . Propulsion 101 | 2 1 . 4 3 . 3 6 . . 5 . . . 3 . 10 2 5 . 1 . 1 10 . 33 1 . 11 . Treads 9 | . 1 . 2 2 . . . . . . . . . . . . . . . . . . . . . . . 4 . Leg 6 | . . . . . . . . . . . . . . . . . . . . . . . . . 3 . . 3 . Wheel 4 | 2 . . 2 . . . . . . . . . . . . . . . . . . . . . . . . . . Hover 28 | . . . . . . 1 . . . . . . . . . 2 2 . . . . . . . 22 . . 1 . Flight 54 | . . . . 1 . 2 6 . . 5 . . . 3 . 8 . 5 . 1 . 1 10 . 8 1 . 3 . Utility 158 | 2 1 . 1 1 1 2 13 . 3 5 2 1 . 2 . 20 . 4 1 . 6 . 9 3 46 7 8 14 6 Device 70 | 1 . . 1 1 . 1 6 . 1 1 1 . . . . 9 . . 1 . 2 . 4 . 18 5 5 9 4 Storage 18 | 1 1 . . . . 1 1 . . 1 . . . . . 3 . 2 . . . . 1 1 3 . 1 1 1 Processor 25 | . . . . . . . 5 . . . . . . . . 3 . 1 . . . . 2 2 7 1 1 3 . Hackware 22 | . . . . . . . 1 . 2 3 1 1 . 1 . 4 . 1 . . 4 . 1 . 1 . 1 1 . Protection 23 | . . . . . 1 . . . . . . . . 1 . 1 . . . . . . 1 . 17 1 . . 1 Artifact . | . . . . . . . . . . . . . . . . . . . . . . . . . . . . . . Weapon 99 | 3 4 3 6 4 1 3 7 5 6 2 1 2 . 1 . 10 . 3 . . 2 . 3 2 20 1 5 4 1 Energy Gun 15 | 3 1 1 . 2 . . 1 . 1 . . . . . . 1 . . . . . . . . 3 . 1 1 . Energy Cannon 8 | . . . . . . . 2 2 1 . . . . . . . . . . . . . . . 2 . 1 . . Ballistic Gun 12 | . 1 . 4 . . 2 . . 1 1 . . . . . . . . . . . . . 1 2 . . . . Ballistic Cannon 13 | . 2 1 . 1 . . 1 1 1 . . . . . . . . . . . . . . . 4 . 1 1 . Launcher 10 | . . 1 . 1 . . . 1 . . . . . . . 2 . . . . . . 2 . 3 . . . . Special Weapon 14 | . . . 1 . . 1 1 . 1 . 1 1 . 1 . 2 . . . . 1 . . . 1 . 1 1 1 Impact Weapon 5 | . . . 1 . . . 1 . . . . . . . . . . . . . . . 1 . 2 . . . . Slashing Weapon 13 | . . . . . . . 1 . . 1 . 1 . . . 3 . 2 . . . . . 1 2 . 1 1 . Piercing Weapon 5 | . . . . . . . . . 1 . . . . . . 1 . 1 . . . . . . 1 1 . . . Special Melee Weapon 4 | . . . . . 1 . . 1 . . . . . . . 1 . . . . 1 . . . . . . . . Unidentified Prototypes 43 | . . . 2 4 . . 2 2 3 . . . . 4 . 8 . . . . . . . 1 5 . 7 4 1 Corrupted Parts 2 | . . . . . . . . . . . . . . . . 1 . . . . . . . . 1 . . . . System Corruption 6 | . . . . . . . . . . . . . . . . 5 . . . . . . . . 1 . . . . Parts Lost 92 | . . . 1 . . 1 2 . 1 7 3 . . . 1 15 . 6 2 . . . 2 . 44 1 . 1 5 Power 21 | . . . . . . . 1 . . 2 1 . . . . 4 . 2 1 . . . . . 9 . . . 1 Propulsion 20 | . . . . . . . . . . 2 1 . . . 1 3 . 2 . . . . . . 10 . . . 1 Utility 35 | . . . 1 . . . 1 . . 2 . . . . . 5 . 1 1 . . . 1 . 19 1 . . 3 Weapon 16 | . . . . . . 1 . . 1 1 1 . . . . 3 . 1 . . . . 1 . 6 . . 1 . Highest Loss Streak 12 | . . . 1 . . 1 1 . 1 3 2 . . . 1 3 . 3 1 . . . 1 . 12 1 . 1 2 To Critical Strikes . | . . . . . . . . . . . . . . . . . . . . . . . . . . . . . . Average Backups 15 | 2 17 24 24 24 25 12 9 9 9 8 8 8 8 8 8 9 13 12 11 12 13 13 12 11 13 23 23 22 16 Power . | . 1 1 . . 1 . . . . . . . . . . . . . . . . . . . . 1 . . 1 Propulsion 1 | 1 3 5 3 3 3 1 1 1 1 . . . . . . . . . 1 1 1 1 . 1 . 5 4 1 2 Utility 5 | . . 1 4 7 10 5 4 3 3 3 2 2 2 2 2 2 6 5 4 4 5 5 4 4 6 11 11 11 9 Weapon 7 | . 11 15 14 12 10 5 1 3 3 3 4 4 4 4 4 5 6 4 5 6 5 5 5 3 4 5 6 7 4 Tool/Special . | . . . . . . . . . . . . . . . . . . . . . . . . . . . . . . Unused Backups 97 | . 1 . 8 7 . 12 2 1 1 3 1 1 . . . 5 . 3 . 1 . . 2 10 24 3 3 4 5 Power 4 | . . . 1 . . . . . . . . . . . . . . . . . . . . 1 1 . . . 1 Propulsion 13 | . . . 2 2 . . . . . . . . . . . 1 . . . . . . . 1 4 1 2 . . Utility 51 | . 1 . . 2 . 8 2 1 1 3 . 1 . . . 3 . 2 . . . . . 6 14 1 1 2 3 Weapon 28 | . . . 5 3 . 4 . . . . 1 . . . . . . 1 . 1 . . 2 2 5 1 . 2 1 Tool/Special 1 | . . . . . . . . . . . . . . . . 1 . . . . . . . . . . . . . Average Slot Usage (%) 90 | . 100 100 99 100 100 80 88 94 98 91 96 87 88 94 94 88 88 89 82 78 82 84 86 94 81 89 94 89 88 Engine 3 | . 14 14 11 3 . 1 4 4 6 3 . . . . . . 5 1 . . . . . . . . . . 3 Core 3 | . . . . . . . 4 6 6 5 10 5 5 5 5 5 . 1 4 5 5 5 4 9 4 4 4 5 3 Reactor 1 | . . . . 7 11 4 . . . . . . . 2 2 1 . 1 . . . . . . 2 . . 1 . Treads 3 | . 11 . 21 21 22 11 . . . . . . . . . . . . . . . . . . . . . 3 . Wheel 7 | . 16 28 22 22 22 11 . . . . . . . . . . . . . . . . . . . . . . . Hover 1 | . . . . . . . . . . . . . . . . 1 4 1 . . . . . . 10 . . . . Flight 15 | . . . . . . 15 32 33 33 31 28 23 23 26 26 20 21 21 21 15 15 15 20 22 8 30 30 18 31 Device 14 | . 14 14 11 11 9 10 9 13 11 5 16 17 17 16 17 18 10 11 10 15 6 5 10 19 20 17 19 19 23 Storage 7 | . 14 14 11 11 11 4 5 6 6 8 5 5 5 5 5 5 5 5 5 5 5 5 4 4 5 4 7 7 7 Processor 7 | . . . . . . . 20 20 10 6 5 5 5 5 5 7 15 16 15 15 15 15 14 15 14 15 15 17 4 Hackware 6 | . . . . . . . . . 10 17 17 17 17 17 17 19 21 17 19 15 23 26 19 13 . 4 7 5 . Protection 1 | . . . . . 1 1 . . . . . . . . . . . . . . . . 1 . 5 7 . . 3 Energy Gun 3 | . 5 13 4 9 10 . . . . . . . . . . . . . . . . . . . . . . 1 3 Ballistic Gun 1 | . 11 . 6 1 . 2 . . . . . . . . . . . . . . . . . . . . . . . Ballistic Cannon 3 | . 10 13 10 11 10 . . 1 . . . . . . . . . . . . . . . . . . . 1 . Impact Weapon 1 | . . . . . . 9 . . . . . . . . . . . . . . . . 1 3 1 2 . . . Slashing Weapon 1 | . . . . . . . 4 . . 3 3 4 5 4 5 3 5 7 5 3 . . . 3 1 . 1 2 3 Special Melee Weapon 1 | . . . . . . 4 . 2 5 3 . . . . . 1 . . . . . . . . . . . . . Peak Build Rating 288 | 7 11 13 23 30 30 28 80 81 81 81 89 81 81 102 101 122 106 121 112 106 118 115 155 162 254 240 267 288 278 Average Rating 99 | 4 10 12 19 26 29 23 70 78 76 73 84 79 81 92 93 96 105 110 104 104 112 114 138 158 174 227 237 256 270 On Entrance 94 | . 7 10 13 23 30 28 21 70 81 77 62 75 81 81 101 88 97 106 112 105 105 115 115 155 156 218 217 243 249 Avg Prop Armor Cover (%) 9 | . 11 9 16 15 13 13 6 . 2 2 . 9 9 9 . 5 4 4 . . 16 . . . 3 . . 16 1 Naked Turns . | . . . . . . . . . . . . . . . . . . . . . . . . . . . . . . Heaviest Build 164 | 11 91 91 99 105 106 102 31 31 29 42 32 29 29 41 41 42 27 44 33 33 37 36 43 43 113 67 68 100 164 Greatest Support 253 | 26 26 26 28 24 24 40 45 30 42 42 35 29 29 42 42 44 35 45 33 37 37 37 47 46 158 59 57 253 86 Greatest Overweight (x) 30 | . 9 30 4 4 4 4 3 1 . 1 . . . . . 1 . 2 1 . 11 . 1 . 26 1 1 3 1 Average Overweight (x) . | . 4 11 3 3 4 1 . . . . . . . . . . . . . . 5 . . . . . . . . Largest Inventory Capacity 25 | 8 25 25 25 25 25 25 10 10 10 10 10 10 10 10 10 15 15 15 15 15 15 15 15 15 25 25 25 25 25 Average Capacity 17 | 7 24 25 25 25 25 13 9 10 10 10 10 10 10 10 10 13 15 15 15 15 15 15 15 15 16 25 25 25 25 Most Carried 25 | 5 22 25 25 25 25 25 10 10 10 10 10 10 10 10 10 15 15 15 15 15 15 15 15 15 25 25 25 25 25 Average Carried 16 | 3 17 24 24 24 25 12 9 9 9 9 9 9 10 9 10 11 15 14 14 14 15 15 14 14 15 24 24 24 17 Final Capacity 25 | 8 25 25 25 25 25 5 10 10 10 10 10 10 10 10 10 15 15 15 15 15 15 15 15 15 25 25 25 25 25 Final Carried 25 | 5 22 25 24 25 25 5 10 10 10 10 10 10 10 10 10 15 15 15 15 15 15 15 15 15 25 25 25 25 17 Class Distribution -------------------- 26% | Mutant 17% | Hacker-Sprinter 11% | Commander-Mutant 8% | Scavenger-Mutant 5% | Hacker-Scout 4% | Scout 3% | Commander-Sprinter 3% | Wizard-Mutant Dominant Class ---------------- Mutant | -10/Materials Mutant | -10/Mines Mutant | -9/Materials Mutant | -9/Storage Mutant | -9/Recycling Commander-Mutant | -9/Scraptown Scout | -6/Factory Scout | -6/Waste Hacker-Sprinter | -6/Factory Commander-Sprinter | -6/Garrison Commander-Sprinter | -5/Factory Hacker-Sprinter | -5/Upper Caves Hacker-Sprinter | -5/Upper Caves Hacker-Sprinter | -5/Zhirov Hacker-Sprinter | -4/Proximity Caves Hacker-Sprinter | -4/Factory Hacker-Sprinter | -4/Waste Hacker-Sprinter | -4/Factory Commander-Sprinter | -4/Extension Hacker-Ninja | -4/Cetus Wizard-Mutant | -4/Archives Wizard-Sprinter | -4/Hub_04(d) Hacker-Sprinter | -3/Research Hacker-Sprinter | -3/Quarantine Scavenger-Mutant | -3/Protoforge Hacker-Scout | -2/Research Wizard-Ninja | -2/Testing Hacker-Skirmisher | -1/Access Scavenger-Mutant | -1/Command Resources | -11 -10 -10 -9 -9 -9 -9 -6 -6 -6 -6 -5 -5 -5 -5 -4 -4 -4 -4 -4 -4 -4 -4 -3 -3 -3 -2 -2 -1 -1 ----------- Run | Yrd Mat Min Mat Sto Rec Scr Fac Was Fac Gar Fac Upp Upp Zhi Pro Fac Was Fac Ext Cet Arc Hub Res Qua Frg Res Tes Acc Com Matter Collected 48269 | 280 244 122 406 1030 55 1000 523 154 609 344 151 26 14 151 . 1076 38 482 91 70 112 10 411 120 5849 869 2919 1248 29865 Remotely 27965 | . . . . . . . . . . . . . . . . . . . . . . . . . 236 . 512 32 27185 Salvage Created 24786 | 103 255 298 432 1208 89 174 1653 457 1382 482 97 16 . 334 . 1937 . 1702 85 174 292 319 1527 393 4846 800 579 1605 3547 Parts 1014 | 7 20 14 28 60 7 2 70 1 45 27 12 4 . 4 . 89 . 60 8 10 25 15 63 14 223 14 15 73 104 Haulers Intercepted 40 | . . . 2 5 . . 4 . 7 . . . . . . 7 . 4 . . . 1 9 . . . 1 . . Recyclers Shooed 11 | . 1 . . 3 . . 3 . . . . . . . . 2 . 1 . . . . 1 . . . . . . Parts Field Recycled . | . . . . . . . . . . . . . . . . . . . . . . . . . . . . . . Retrieved Matter . | . . . . . . . . . . . . . . . . . . . . . . . . . . . . . . Parts Self-Destructed 5 | . . . . . . . . . . . . . 2 3 . . . . . . . . . . . . . . . Prevented 4 | . . . . . . . . . . . . . 4 . . . . . . . . . . . . . . . . Parts Restored 16 | . . . . . . . . . . . . . . . . . . . . . . . . . 16 . . . . Faulty 16 | . . . . . . . . . . . . . . . . . . . . . . . . . 16 . . . . Kills | -11 -10 -10 -9 -9 -9 -9 -6 -6 -6 -6 -5 -5 -5 -5 -4 -4 -4 -4 -4 -4 -4 -4 -3 -3 -3 -2 -2 -1 -1 ------- Run | Yrd Mat Min Mat Sto Rec Scr Fac Was Fac Gar Fac Upp Upp Zhi Pro Fac Was Fac Ext Cet Arc Hub Res Qua Frg Res Tes Acc Com Combat Hostiles Destroyed 252 | . 7 5 10 16 2 . 8 2 15 10 1 . . . . 18 . 6 1 2 . 2 9 1 102 . 7 16 12 Melee 58 | . . . . . . . 4 . 1 3 . . . . . 6 . 1 1 . . . 2 1 22 . 1 9 7 Guns 33 | . 6 2 3 7 1 . . . 2 1 . . . . . . . . . . . . . . 9 . . 2 . Cannons 47 | . 1 . 4 7 1 . . . 6 1 . . . . . . . . . . . . . . 27 . . . . AOE 91 | . . 3 3 2 . . 4 2 6 5 1 . . . . 12 . 4 . . . 2 7 . 27 . 5 4 4 Classes Destroyed 29 | 2 4 . 3 1 1 3 1 1 4 2 . . . . . 1 . 1 . . . . . 1 4 . . . . Worker 26 | . 1 2 . 1 . . 3 . 2 1 1 . . . . 5 . 2 . . . 1 2 . 2 . 1 . 2 Builder 24 | . . . 1 . . . 3 . . . 1 . . . . 5 . 2 2 . . 1 2 2 2 1 . 2 . Tunneler 8 | 2 . . . . . 2 1 . . . 1 . . . . 1 . . . . . . 1 . . . . . . Hauler 40 | . . . 2 5 . . 4 . 7 . . . . . . 7 . 4 . . . 1 9 . . . 1 . . Recycler 39 | 1 1 2 . 5 . 1 6 . . . . . . . . 3 . 4 . . . . 2 . . 5 3 2 4 Mechanic 3 | . . . . . . . 1 . . . . . . . . . . . . . . . . . 1 . 1 . . Operator 24 | . 1 . 1 2 . . 1 . 1 . 1 . . . . . . . . 1 8 1 1 . 1 . 1 2 2 Drone 14 | . . . . . . 3 . . . . . . . . . . . . . . . . . . 11 . . . . Watcher 34 | . . . . 1 . . 3 . . . 1 . . . . 2 . 7 . . . 1 2 2 2 5 . 6 2 Swarmer 48 | . 6 3 3 2 . . 4 . . 6 . . . . . 8 . 2 . . . 1 5 . 4 . . . 4 Cutter 1 | . . . . . . . . . . . . . . . . . . 1 . . . . . . . . . . . Saboteur 3 | . . . . . . . . . 2 . . . . . . . . . . . . . . . 1 . . . . Grunt 58 | . 1 2 6 7 . . . . 5 2 . . . . . 3 . 1 . . . 1 . . 21 . 4 5 . Brawler 1 | . . . . . . . . . . . . . . . . . . . . . . . . . 1 . . . . Duelist 3 | . . . . . . . . . . 1 . . . . . . . . . . . . . . 2 . . . . Protector 4 | . . . . . . . . . 1 . . . . . . 1 . . . . . . . . 2 . . . . Researcher 6 | . . . . . . . . . . . . . . . . . . . . . . . . . 6 . . . . Sentry 29 | . . . 2 7 . . 1 . 2 . . . . . . 2 . . . . . . . . 10 . 2 3 . Demolisher 2 | . . . . . . . . . 1 . . . . . . . . . 1 . . . . . . . . . . Specialist 1 | . . . . . . . . . . . . . . . . 1 . . . . . . . . . . . . . Hunter 16 | . . . . . . . . . 3 . . . . . . . . 2 . . . . . . 5 . . 5 1 Programmer 40 | . . . . . 2 . 3 . 1 . 1 . . . . 3 . . . . . . 4 . 23 . . 3 . Behemoth 1 | . . . . . . . . . . 1 . . . . . . . . . . . . . . . . . . . Compactor 2 | . . . . . . . . 2 . . . . . . . . . . . . . . . . . . . . . Cetus Guard 2 | . . . . . . . . . . . . . . . . . . . . 2 . . . . . . . . . M Guard 2 | . . . . . . . . . . . . . . . . . . . . . . . . . . . . . 2 Decapitator 10 | . . . . . . . . . . . . . . . . . . . . . . . . . 10 . . . . Immortal 4 | . . . . . . . . . . . . . . . . . . . . . . . . . 4 . . . . Combat Programmer 2 | . . . . . . . . . . . . . . . . . . . . . . . . . . . . . 2 Alpha 7 2 | . . . . . . . . . . . . . . . . . . . . . . . . . 2 . . . . Fortress 1 | . . . . . . . . . . . . . . . . . . . . . . . . 1 . . . . . V-Series 6 | . . . . . . . . . . . . . . . . . . . . . . . . . 6 . . . . Protovariant L 1 | . . . . . . . . . . . . . . . . . . . . . . . . . . . 1 . . Scientist 1 | . . . . . . 1 . . . . . . . . . . . . . . . . . . . . . . . Tinkerer 2 | . . . . . . 1 . . . . . . . . . . . . . . . . . . 1 . . . . Martyr 1 | . . . . . . . . . 1 . . . . . . . . . . . . . . . . . . . . Wizard 2 | . . . . . . . . . . . . . . . . . . . . . . . . . . . . . 2 Best Kill Streak 11 | 2 3 3 7 6 2 . 5 2 6 3 3 . . . . 7 . 5 2 2 4 7 11 1 9 4 7 4 8 Combat Bots Only 9 | . 3 3 7 3 2 . 4 2 6 3 1 . . . . 5 . 2 1 2 . 2 9 1 9 . 3 3 5 Max Kills in Single Turn 6 | 2 1 2 3 2 1 1 3 1 5 3 3 . . . . 4 . 2 1 1 1 6 5 1 4 1 5 2 3 Gunslinging . | . . . . . . . . . . . . . . . . . . . . . . . . . . . . . . Exploded 5 | . . 2 3 1 . . 3 1 4 3 1 . . . . 4 . 2 . . . 2 5 . 4 . 3 2 3 Melee 1 | . . . . . . . 1 . 1 1 . . . . . 1 . 1 1 . . . 1 1 1 . 1 1 1 Uniques/NPCs Destroyed 6 | . . . . . . . . . . . . . . . . . . . . . . . . 3 . . . 1 2 CL-0N3 (-3/Quarantine) DW-4LL (-3/Quarantine) 6S-H0T (-3/Quarantine) QV-33N (-1/Access) MAIN.C Shell (-1/Command) MAIN.C (-1/Command) Combat | -11 -10 -10 -9 -9 -9 -9 -6 -6 -6 -6 -5 -5 -5 -5 -4 -4 -4 -4 -4 -4 -4 -4 -3 -3 -3 -2 -2 -1 -1 -------- Run | Yrd Mat Min Mat Sto Rec Scr Fac Was Fac Gar Fac Upp Upp Zhi Pro Fac Was Fac Ext Cet Arc Hub Res Qua Frg Res Tes Acc Com Hostile Shots Fired 1366 | . 33 5 29 51 10 16 116 . 33 72 26 . . . 3 150 . 34 17 18 1 25 30 6 584 39 2 44 22 Missed 548 | . 10 2 14 12 1 9 63 . 19 41 15 . . . . 71 . 12 9 9 1 13 19 4 184 11 2 18 9 Deflected 7 | . . . . . . . . . . . . . . . . . . . . . . . . . 4 3 . . . Hits 818 | . 23 3 15 39 9 7 53 . 14 31 11 . . . 3 79 . 22 8 9 . 12 11 2 400 28 . 26 13 Melee 30 | . . . . . . . . . . . 1 . . . . . . . . . . . . . 24 5 . . . Projectile 788 | . 23 3 15 39 9 7 53 . 14 31 10 . . . 3 79 . 22 8 9 . 12 11 2 376 23 . 26 13 AOE 13 | . . . . . . . . . . 1 . . . . . . . 2 3 . . . . . 5 . . . 2 Critical Strikes 69 | . . . . 1 . . 2 . . 1 1 . . . . 3 . 3 . 1 . . . 2 41 8 . 5 1 Actively Blocked 30 | . . . . . . . . . . 1 1 . . . . 2 . . . . . . . 2 22 2 . . . Part Disruptions 4 | . . . . . . . . . . 1 . . . . . . . . . . . . . . 2 . . . 1 Damage Taken 19700 | . 191 27 125 371 134 139 539 . 191 701 288 . . . 99 1569 . 868 230 184 26 221 286 85 11870 510 . 511 535 Core 2701 | . 37 . 15 30 29 18 134 . 57 315 138 . . . . 401 . 431 29 77 . 81 88 22 546 144 . 96 13 Absorbed by Shields 703 | . . . 52 140 . . . . . . . . . . . . . . 11 65 . . . . 255 . . 96 84 Redirected to Shielding 974 | . . . . . . . . . 16 . . . . . . . . . . . . . . . 843 115 . . . Ignored by Resistances 209 | . . . . . . . . . . . . . . . . . . . . . . . . . . 87 . 70 52 Regen/Repaired (Parts) 2046 | . . . . 22 . 66 . 204 66 . . . . . . 127 . 51 . . . . . 95 1207 160 . 48 . Core Remaining (%) 69 | 100 . 85 . . . 77 . . . 40 . . . . 80 . . . . . . 11 . . 45 . 90 . 93 Volleys Fired 791 | 6 36 13 39 71 3 . 34 4 127 64 15 2 . 3 . 23 . 8 . 4 . . 6 1 252 . 20 24 36 Largest 2 | 2 2 2 2 2 2 . 1 1 1 1 1 1 . 1 . 1 . 1 . 1 . . 1 1 2 . 1 2 1 Hottest 280 | 80 90 96 100 89 89 . 90 46 105 105 105 105 . 7 . 105 . 105 . 49 . . 52 . 280 . 200 200 200 Shots Fired 952 | 12 71 24 62 129 6 . 34 4 127 65 15 2 . 3 . 23 . 8 . 4 . . 6 1 272 . 20 25 39 Gun 410 | 12 59 11 26 59 3 . 21 . 34 8 . . . . . . . . . . . . . . 122 . 10 20 25 Cannon 396 | . 12 11 34 66 3 . 10 . 57 55 9 1 . . . 11 . 1 . . . . . . 115 . 6 2 3 Launcher 77 | . . 2 1 4 . . 2 4 3 2 1 . . . . 6 . 7 . 4 . . 6 . 27 . 3 2 3 Special 69 | . . . 1 . . . 1 . 33 . 5 1 . 3 . 6 . . . . . . . 1 8 . 1 1 8 Kinetic 287 | . 43 11 49 72 3 . 4 . 29 8 . . . . . . . . . . . . . . 64 . 2 1 1 Thermal 364 | 9 28 11 12 53 3 . 27 . 62 55 9 1 . . . 11 . 1 . . . . . . 74 . 4 2 2 Explosive 67 | . . 2 1 4 . . 2 4 3 2 1 . . . . 6 . 1 . . . . 6 . 27 . 3 2 3 Electromagnetic 166 | 3 . . . . . . . . . . . . . . . . . 6 . 4 . . . . 99 . 10 19 25 Piercing 49 | . . . . . . . . . 33 . . . . . . . . . . . . . . . 8 . . . 8 Robot Hit Streak 33 | 6 7 7 4 10 2 . 7 . 21 13 16 2 . 5 . 5 . 2 . 2 . . 1 1 33 . 6 4 21 Robot Miss Streak 5 | 1 5 4 3 5 2 . 5 . 5 4 1 . . . . 2 . 1 . 1 . . 1 . 3 . 1 3 3 Penetration Max 2 | . . . . . . . . . . . . . . . . . . . . . . . . . 2 . 1 1 1 Secondary Targets . | . . . . . . . . . . . . . . . . . . . . . . . . . . . . . . Shots Hit Robots 1160 | 8 35 11 26 74 3 10 59 . 81 68 9 7 . 13 . 86 . 39 9 2 10 1 42 19 273 25 27 72 151 Core Hits 655 | 4 13 10 17 37 2 1 35 4 70 18 3 . . 2 . 55 . 26 1 5 6 12 32 3 164 7 17 42 69 Critical Kills 13 | . . . . . . . . . 3 . . . . . . 1 . . . . . . . . 9 . . . . Critical Parts Destroyed 16 | . . . . . . . . . 2 . . . . . . . . . . . . . . . 9 4 . . 1 Critical Strikes 152 | . 3 . 4 7 1 . 9 . 36 1 1 . . . . 10 . 4 . . 1 1 4 . 44 5 3 2 16 Burn 12 | . 3 . 1 4 1 . 3 . . . . . . . . . . . . . . . . . . . . . . Meltdown 5 | . . . . . . . . . . . . . . . . 1 . . . . . . . . 4 . . . . Destroy 19 | . . . . . . . . . 6 . . . . . . . . . . . . . . . 12 . . . 1 Blast 15 | . . . 3 3 . . . . . . . . . . . . . . . . . . . . 9 . . . . Corrupt 1 | . . . . . . . . . . . . . . . . . . . . . . . . . . . . . 1 Smash 6 | . . . . . . . . . . . . . . . . . . . . . . . . . 2 4 . . . Sever 35 | . . . . . . . 6 . . 1 1 . . . . 8 . 4 . . . . . . 6 . 1 2 6 Impale 59 | . . . . . . . . . 30 . . . . . . 1 . . . . 1 1 4 . 11 1 2 . 8 Melee Attacks 1040 | . . . 5 . 2 12 71 . 5 77 13 11 . 10 . 137 . 56 16 . 10 5 55 81 148 54 52 87 133 Impact 116 | . . . 5 . 2 10 2 . . . . . . . . . . . . . . . 4 18 48 27 . . . Slashing 720 | . . . . . . . 69 . . 45 13 11 . 10 . 114 . 46 16 . . . . 60 92 . 24 87 133 Piercing 168 | . . . . . . . . . 5 . . . . . . 21 . 10 . . 10 5 51 3 8 27 28 . . Sneak Attacks 196 | . . . 1 . . 10 13 . 5 34 . . . . . 25 . 10 4 . 10 . 16 8 12 7 21 14 6 Combat Hostiles 20 | . . . . . . . 1 . 1 . . . . . . 1 . . 2 . . . . 6 . . . 9 . Follow-up Attacks 14 | . . . . . . . . . . . . . . . . . . 1 . . . . 1 5 7 . . . . Martial Strikes 40 | . . . . . . . . . . . . . . . . . . . . . . . . . 16 13 1 10 . Damage Inflicted 88196 | 122 523 385 736 1764 72 615 3539 873 3755 2662 725 426 . 745 . 7377 . 3175 765 458 978 785 4153 1496 26996 1963 3574 6180 13354 Guns 6438 | 90 438 124 251 685 42 . 396 . 258 139 . . . . . . . . . . . . . . 2743 . 147 641 484 Cannons 10886 | . 85 109 265 853 30 . 90 . 894 406 . . . . . 110 . . . . . . . . 7984 . . 49 11 Explosions 24414 | 32 . 152 176 226 . . 286 873 1780 667 398 . . . . 3173 . 757 . 458 . 726 1420 . 7796 . 1725 1851 1918 Melee 45737 | . . . 44 . . 615 2767 . 348 1450 322 426 . 745 . 4094 . 2418 765 . 978 59 2733 1496 8368 1963 1702 3639 10805 Ramming 5 | . . . . . . . . . . . 5 . . . . . . . . . . . . . . . . . . Kinetic 6359 | . 338 109 415 931 30 . 90 . 150 139 . . . . . . . . . . . . . . 4097 . . 49 11 Thermal 9441 | 109 185 124 101 607 42 . 396 . 1002 406 . . . . . 1441 . . . . . . . . 4995 . . 33 . Explosive 20951 | . . 152 176 226 . . 286 873 1780 667 398 . . . . 1842 . 242 . . . . 1420 . 7395 . 1725 1851 1918 Electromagnetic 4987 | 13 . . . . . . . . . . . . . . . . . 515 . 458 . 726 . . 2036 . 147 608 484 Impact 4606 | . . . 44 . . 615 92 . . . . . . . . . . . . . . . 82 393 2225 1155 . . . Slashing 33600 | . . . . . . . 2675 . . 1450 322 426 . 745 . 3127 . 2309 765 . . . . 1103 5627 . 607 3639 10805 Piercing 8247 | . . . . . . . . . 823 . . . . . . 967 . 109 . . 978 59 2651 . 621 808 1095 . 136 Highest Corruption 41 | . . . . . 2 2 1 . . 2 . . . . . 8 8 8 8 8 8 . . . 41 . . 2 3 Average Corruption 8 | . . . . . 1 2 1 . . 1 . . . . . 6 8 8 8 8 4 . . . 32 . . 2 2 Corruption Purged 10 | . . . . . . . 2 . . . . . . . . . . . . . 8 . . . . . . . . Corruption Blocked 20 | . . . . . . . . . . . . . . . . . . . . . . . 2 . 18 . . . . Effects 281 | . . . . . 4 . 2 . . 13 . . . . . 39 5 45 22 7 3 . . . 92 . . 2 47 Message Errors 68 | . . . . . 3 . . . . 4 . . . . . 11 1 13 3 1 1 . . . 19 . . 1 11 Matter Fused 67 | . . . . . . . . . . . . . . . . 9 3 11 6 2 1 . . . 25 . . . 10 Heat Flow Errors 35 | . . . . . . . 1 . . 3 . . . . . 6 . 4 4 1 . . . . 11 . . . 5 Energy Discharges 29 | . . . . . . . . . . 3 . . . . . 3 . 5 3 1 1 . . . 8 . . . 5 Parts Rejected 3 | . . . . . . . 1 . . . . . . . . 2 . . . . . . . . . . . . . Parts Fused 5 | . . . . . . . . . . . . . . . . . . 1 . . . . . . 1 . . . 3 Data Loss (minor) 34 | . . . . . 1 . . . . 2 . . . . . 3 . 8 5 2 . . . . 7 . . 1 5 Data Loss (major) 14 | . . . . . . . . . . . . . . . . 2 . 2 1 . . . . . 4 . . . 5 Misfires 6 | . . . . . . . . . . 1 . . . . . . . . . . . . . . 2 . . . 3 Alerts 5 | . . . . . . . . . . . . . . . . 3 1 1 . . . . . . . . . . . Misdirections 6 | . . . . . . . . . . . . . . . . . . . . . . . . . 6 . . . . Weapon Failures 9 | . . . . . . . . . . . . . . . . . . . . . . . . . 9 . . . . Overload Shots . | . . . . . . . . . . . . . . . . . . . . . . . . . . . . . . Overflow Damage 11089 | . . 11 . 28 . 420 520 . 198 200 133 63 . 265 . 679 . 414 223 . 334 140 544 312 3519 807 339 786 1154 Projectiles 1108 | . . 4 . . . . . . 21 . . . . . . 8 . . . . . . . . 1075 . . . . Explosions 1530 | . . 7 . 28 . . 12 . 75 52 . . . . . 205 . 54 . . . 61 61 . 452 . 76 190 257 Melee 8451 | . . . . . . 420 508 . 102 148 133 63 . 265 . 466 . 360 223 . 334 79 483 312 1992 807 263 596 897 Knockbacks 65 | . 2 3 . 9 . 2 3 . . . . . . . . . . . . . . . . 2 37 6 . 1 . Impact 27 | . . . . . . 1 1 . . . . . . . . . . . . . . . . 2 17 6 . . . Kinetic 32 | . 2 3 . 8 . . 2 . . . . . . . . . . . . . . . . . 16 . . 1 . Secondary 6 | . . . . 1 . 1 . . . . . . . . . . . . . . . . . . 4 . . . . Self-Inflicted Damage 440 | . . . . 26 . . 26 . . . 2 . . . . . . 91 . . . . 33 . 262 . . . . Shots 13 | . . . . 1 . . 1 . . . . . . . . . . 2 . . . . 1 . 8 . . . . Rammed 1 | . . . . . . . . . . . 1 . . . . . . . . . . . . . . . . . . Targets Rammed 1 | . . . . . . . . . . . 1 . . . . . . . . . . . . . . . . . . Kicked . | . . . . . . . . . . . . . . . . . . . . . . . . . . . . . . Crushed . | . . . . . . . . . . . . . . . . . . . . . . . . . . . . . . Highest Temperature 335 | 54 100 114 104 276 24 . 123 7 270 228 162 38 . 24 120 251 . 295 257 98 . . 3 1 335 . 59 4 164 Average Temperature 66 | 28 26 36 24 62 12 . 38 4 101 94 35 21 . 9 60 62 . 84 111 35 . . 2 1 107 . 41 4 73 Received Heat Transfer 1695 | . 12 6 47 130 . 18 96 . 48 87 48 . . . 9 159 . 57 49 18 . 18 12 9 800 . . 45 27 Effects 10 | . . . . . . . . . 7 3 . . . . . . . . . . . . . . . . . . . Energy Bleed 2 | . . . . . . . . . 1 1 . . . . . . . . . . . . . . . . . . . Interference 8 | . . . . . . . . . 6 2 . . . . . . . . . . . . . . . . . . . Siege Activations . | . . . . . . . . . . . . . . . . . . . . . . . . . . . . . . Martial Activations . | . . . . . . . . . . . . . . . . . . . . . . . . . . . . . . Shielding Activations . | . . . . . . . . . . . . . . . . . . . . . . . . . . . . . . Robots Disrupted 3 | . . . . . . . . . . . . . . . . . . . . . . . . . 3 . . . . Combat Hostiles 3 | . . . . . . . . . . . . . . . . . . . . . . . . . 3 . . . . Robots Corrupted 28 | . . . . . . 3 1 . . . . . . . . . . 1 . 2 . . . 1 13 4 1 1 1 Combat Hostiles 18 | . . . . . . . . . . . . . . . . . . 1 . 2 . . . . 12 . 1 1 1 Parts Fried 42 | . . . . . . 2 1 . 1 . . . . . . . . 3 . 1 . 1 . 1 21 8 1 1 1 Impact Corruptions 60 | . . . . . . 15 3 . . . . . . . . . . . . . . . . 3 27 12 . . . Robots Melted 5 | . . . . . . . . . . . . . . . . 1 . . . . . . . . 4 . . . . Combat Hostiles 4 | . . . . . . . . . . . . . . . . . . . . . . . . . 4 . . . . Parts Melted 19 | . 1 . 2 2 1 . 3 . 2 1 . . . . . 2 . . . . . . . . 5 . . . . Heat Transferred 10566 | 225 765 259 296 1591 148 . 1200 . 1351 444 . . . . . 1061 . . . . . . . . 3189 . . 37 . Parts Sabotaged 6 | . . . . . . . . . . . . . . . . . . . . . . . . . 6 . . . . Parts Stolen . | . . . . . . . . . . . . . . . . . . . . . . . . . . . . . . Parts Stripped . | . . . . . . . . . . . . . . . . . . . . . . . . . . . . . . Power Chain Reactions 2 | 1 . . . . . . . . . . . . . . . . . . . . . . . . 1 . . . . Alert | -11 -10 -10 -9 -9 -9 -9 -6 -6 -6 -6 -5 -5 -5 -5 -4 -4 -4 -4 -4 -4 -4 -4 -3 -3 -3 -2 -2 -1 -1 ------- Run | Yrd Mat Min Mat Sto Rec Scr Fac Was Fac Gar Fac Upp Upp Zhi Pro Fac Was Fac Ext Cet Arc Hub Res Qua Frg Res Tes Acc Com Maximum Alert Level 5 | . . . . 2 . . 1 . 5 5 5 . . . . 5 3 5 4 3 1 2 3 3 5 4 3 5 5 Low Security (%) 39 | 100 100 100 100 28 100 . 99 100 17 . . . . . . 35 . . . . 52 56 34 23 . . 20 1 . Level 1 13 | . . . . 63 . . . . 1 . . . . . . 20 . . . . 47 40 33 45 . . 60 52 . Level 2 7 | . . . . 8 . . . . 7 . . . . . . 12 21 33 8 20 . 3 22 17 2 26 16 32 . Level 3 9 | . . . . . . . . . 15 . . . . . . 7 78 37 43 79 . . 8 13 27 19 2 . . Level 4 6 | . . . . . . . . . 10 . . . . . . 8 . 3 48 . . . . . 28 53 . . . Level 5 18 | . . . . . . . . . . 100 54 . . . . 14 . 16 . . . . . . 42 . . . 91 High Security 4 | . . . . . . . . . 46 . 45 . . . . . . 8 . . . . . . . . . . 7 Max Security . | . . . . . . . . . . . . . . . . . . . . . . . . . . . . 13 . Sterilizations 1 | . . . . . . . . . 1 . . . . . . . . . . . . . . . . . . . . Peak Influence 4891 | 10 150 128 169 423 136 . 203 53 4662 4891 3713 . . . . 2124 743 2293 1235 766 367 401 748 902 2805 1573 727 2406 1851 Initial 3263 | . . 50 3 67 132 . . 2 . 3263 2567 . . . . . 743 478 1123 656 294 . 199 118 500 1568 321 436 1462 Average 819 | 1 24 6 43 282 29 . 54 9 1942 4278 2948 . . . . 661 715 1069 972 720 179 160 326 368 1661 1042 337 628 1766 Influence Increases 37314 | 15 268 222 426 789 237 . 656 111 6038 2278 1590 . . 15 . 4270 . 3359 1657 381 323 780 1502 1972 4425 470 1156 2488 1886 Destroy 0b10 Robot/C 15440 | . 140 140 220 420 40 . 180 . 2440 860 480 . . . . 1920 . 1660 700 160 80 140 640 740 2540 40 320 700 880 Destroy 0b10 Robot/NC 1420 | 15 15 20 35 75 . . 110 . 110 5 30 . . 15 . 155 . 100 50 10 45 25 145 45 90 55 45 75 150 Destroy Leader 2566 | . 30 20 68 134 . . 74 . 478 30 94 . . . . 352 . 336 64 . . 24 166 106 254 20 32 188 96 Allied During Kill 8939 | . . 25 44 36 4 . 1 . 2630 675 202 . . . . 453 . 1029 770 170 125 120 281 804 625 5 78 358 504 Trap Triggered on 0b10 160 | . . . . . . . . . . . . . . . . . . . . . . . . 40 . 20 100 . . Successful Hack 882 | . 33 . 18 20 11 . 113 . 148 . 48 . . . . 51 . 50 . 7 . 6 79 82 . 36 35 135 10 Select Force Hacks 280 | . . . . . 180 . . . . . . . . . . . . . . . . 100 . . . . . . . Disable Machine 1575 | . 15 . 30 60 . . 15 . 60 . 75 . . . . 285 . 90 . . 45 105 . 120 390 15 150 45 75 Anti-Garrison Action 450 | . . . . . . . . . . 450 . . . . . . . . . . . . . . . . . . . Destroy Structure 2242 | . 5 17 11 29 2 . 43 66 97 183 136 . . . . 214 . 34 28 34 28 200 146 20 376 39 216 147 171 Partial Spotted 840 | . . . . . . . 45 45 60 15 45 . . . . 240 . 30 45 . . . 30 . 30 75 75 105 . Lose Combat Pursuer 1920 | . 30 . . 15 . . 75 . 15 60 480 . . . . 600 . 30 . . . 60 15 15 120 165 105 135 . Miscellaneous 600 | . . . . . . . . . . . . . . . . . . . . . . . . . . . . 600 . Influence Decreases 36017 | 15 138 342 275 610 577 . 650 117 1376 2049 2788 1467 454 1782 5 2146 1441 1749 2776 818 1060 400 1671 1293 2526 2687 1001 1990 1814 Entered New Map 14652 | . . 80 7 94 208 . . 4 . 1399 2324 1367 424 1772 5 . 1381 205 1170 518 443 . 181 93 390 1221 251 291 824 Time Decay 7754 | 15 138 262 243 506 278 . 425 73 356 . 214 100 30 10 . 596 60 494 326 140 577 80 410 580 756 246 270 559 10 Search Patrol Dispatched 100 | . . . . . . . . . . . . . . . . 100 . . . . . . . . . . . . . Lost Part 895 | . . . 5 . . . 20 . 10 70 30 . . . . 150 . 60 20 . . . 20 . 440 10 . 10 50 Lost Ally 6225 | . . . 20 10 . . 55 40 560 580 220 . . . . 1000 . 540 660 160 40 20 160 170 640 10 30 380 930 Purge Threat 6391 | . . . . . 91 . 150 . 450 . . . . . . 300 . 450 600 . . 300 900 450 300 1200 450 750 . Squads Dispatched 206 | . 2 1 1 2 . . 9 . 30 . 18 . . . . 25 . 24 4 . . 3 10 12 26 13 8 13 5 Investigation 35 | . 1 1 . 1 . . 2 . 6 . . . . . . 5 . 5 . . . 2 4 . 1 3 2 2 . Extermination 46 | . . . . . . . 4 . 2 . 2 . . . . 7 . 2 . . . 1 1 5 9 4 4 5 . Reinforcement 46 | . 1 . 1 1 . . 2 . 4 . 1 . . . . 7 . 8 . . . . 5 5 2 5 2 2 . Assault 69 | . . . . . . . . . 14 . 15 . . . . 6 . 8 4 . . . . 2 14 1 . . 5 Garrison 10 | . . . . . . . 1 . 4 . . . . . . . . 1 . . . . . . . . . 4 . Intercept . | . . . . . . . . . . . . . . . . . . . . . . . . . . . . . . Searches Triggered 1 | . . . . . . . . . . . . . . . . 1 . . . . . . . . . . . . . Unchained Authorized 6 | . . . . . . . . . . . 1 . . . . . . . . . . . . 3 . 1 . 1 . Construction Impeded 7 | . . . . . . . 1 . . . 1 . . . . 2 . 2 . . . . 1 . . . . . . Haulers Reinforced 9 | . . . . . . . 1 . 4 . . . . . . . . 2 . . . . 1 . . . 1 . . Active Scanning Responses . | . . . . . . . . . . . . . . . . . . . . . . . . . . . . . . Cargo Convoy Interrupts 2 | . . . . . . . 1 . . . . . . . . 1 . . . . . . . . . . . . . Stealth | -11 -10 -10 -9 -9 -9 -9 -6 -6 -6 -6 -5 -5 -5 -5 -4 -4 -4 -4 -4 -4 -4 -4 -3 -3 -3 -2 -2 -1 -1 --------- Run | Yrd Mat Min Mat Sto Rec Scr Fac Was Fac Gar Fac Upp Upp Zhi Pro Fac Was Fac Ext Cet Arc Hub Res Qua Frg Res Tes Acc Com Distress Signals 83 | . . . 1 3 . . 3 . 2 . 4 . . . . 9 . 4 5 2 . 4 6 . 3 2 3 4 28 Communications Jammed 1203 | . . . . . . . . . . . . . . . . 25 . 9 832 . . . . 103 216 2 2 14 . Distress Signals 1160 | . . . . . . . . . . . . . . . . 15 . 2 832 . . . . 103 193 1 2 12 . Times Spotted 848 | . 15 6 19 26 2 13 20 3 105 39 45 . . . 1 116 . 57 35 10 2 20 45 26 131 32 13 44 23 Peak Tracking Total 24 | . 3 3 6 6 2 17 4 2 12 7 24 . . . 1 12 . 9 11 5 1 8 9 5 8 8 4 11 5 Tactical Retreats 62 | . 1 . . 1 . . 4 1 1 2 9 . . . . 15 . 2 . . . 4 1 1 6 6 3 5 . Traps | -11 -10 -10 -9 -9 -9 -9 -6 -6 -6 -6 -5 -5 -5 -5 -4 -4 -4 -4 -4 -4 -4 -4 -3 -3 -3 -2 -2 -1 -1 ------- Run | Yrd Mat Min Mat Sto Rec Scr Fac Was Fac Gar Fac Upp Upp Zhi Pro Fac Was Fac Ext Cet Arc Hub Res Qua Frg Res Tes Acc Com Traps Triggered 37 | . . . . 1 . . 2 . 1 9 . . . . . 4 . 1 . . . . 3 . 14 . . 2 . Indirectly . | . . . . . . . . . . . . . . . . . . . . . . . . . . . . . . Trap Hack Attempts 10 | . . . . . . . . . 4 . . . . . . 6 . . . . . . . . . . . . . Triggered 1 | . . . . . . . . . . . . . . . . 1 . . . . . . . . . . . . . Disarmed 1 | . . . . . . . . . . . . . . . . . . . . . . . . . . . . . 1 Reprogrammed 45 | . . . . . . . 6 . 1 . . . . . . . . . . . . . . 6 . 18 14 . . Reused 18 | . . . . . . . . . . . . . . . . . . . . . . . . 4 . 4 10 . . Traps Extracted . | . . . . . . . . . . . . . . . . . . . . . . . . . . . . . . Installed 1 | . . . . . . 1 . . . . . . . . . . . . . . . . . . . . . . . Triggered 16 | . . . . . . . . . . . . . . . . . . . . . . . . 4 . 2 10 . . Most Traps Carried 1 | . . . . . . 1 . . . . . . . . . . . . . . . . . . . . . . . Objects Rigged 8 | . . . . . . . . . . . . . . . . . . . . . . 1 . . . 5 . 2 . Exploded 3 | . . . . . . . . . . . . . . . . . . . . . . 1 . . . . . 2 . Machines | -11 -10 -10 -9 -9 -9 -9 -6 -6 -6 -6 -5 -5 -5 -5 -4 -4 -4 -4 -4 -4 -4 -4 -3 -3 -3 -2 -2 -1 -1 ---------- Run | Yrd Mat Min Mat Sto Rec Scr Fac Was Fac Gar Fac Upp Upp Zhi Pro Fac Was Fac Ext Cet Arc Hub Res Qua Frg Res Tes Acc Com Machines Disabled 132 | . 1 . 2 4 . 3 1 . 4 8 5 . . . . 19 . 6 . . 3 7 . 8 41 1 11 3 5 Max in Single Turn 6 | . 1 . 1 1 . 1 1 . 1 1 1 . . . . 5 . 2 . . . 6 . 1 2 . 1 1 1 Garrison Access 20 | . . . . . . . 1 . . . . . . . . 2 . 4 . . . 1 2 1 1 1 1 6 . Garrison Relay 6 | . . . . . . . . . . 6 . . . . . . . . . . . . . . . . . . . Network Hub 4 | . . . . . . . . . . . . . . . . . . . . . . 4 . . . . . . . Machines Repaired . | . . . . . . . . . . . . . . . . . . . . . . . . . . . . . . Machines Dismantled . | . . . . . . . . . . . . . . . . . . . . . . . . . . . . . . Machines Sabotaged 2 | . . . . . . . . . . . . . . . . . . . . . . 2 . . . . . . . Overloaded Fab Kills . | . . . . . . . . . . . . . . . . . . . . . . . . . . . . . . Hacking | -11 -10 -10 -9 -9 -9 -9 -6 -6 -6 -6 -5 -5 -5 -5 -4 -4 -4 -4 -4 -4 -4 -4 -3 -3 -3 -2 -2 -1 -1 --------- Run | Yrd Mat Min Mat Sto Rec Scr Fac Was Fac Gar Fac Upp Upp Zhi Pro Fac Was Fac Ext Cet Arc Hub Res Qua Frg Res Tes Acc Com Machines Accessed 248 | . 5 1 4 13 12 1 21 . 26 1 3 1 . 4 1 29 . 24 5 1 . 4 15 12 4 17 12 29 3 Terminals 137 | . 5 . 4 10 6 . 11 . 14 1 . . . . 1 11 . 11 5 1 . 3 5 9 3 10 8 16 3 Fabricators 26 | . . . . . . . 3 . 6 . . . . . . 6 . 3 . . . . 3 . . 1 2 2 . Repair Stations 15 | . . . . 1 . . 2 . 1 . 1 . . . . 4 . 2 . . . . 2 1 . . . 1 . Recycling Units 25 | . . . . 1 6 . 2 . 3 . 2 . . . . 3 . 2 . . . . 1 . . 2 . 3 . Scanalyzers 14 | . . . . . . . 1 . . . . . . . . 3 . 2 . . . . 2 1 . 3 1 1 . Garrison Access 24 | . . . . 1 . . 2 . 2 . . . . . . 2 . 4 . . . 1 2 1 1 1 1 6 . Total Hacks 913 | . 20 1 11 41 30 1 64 . 99 3 6 1 . 17 1 86 . 84 10 1 . 17 57 51 16 98 62 124 12 Successful 584 | . 8 1 3 21 21 1 32 . 57 1 3 1 . 17 1 65 . 54 9 1 . 15 43 33 3 71 37 79 7 Failed 329 | . 12 . 8 20 9 . 32 . 42 2 3 . . . . 21 . 30 1 . . 2 14 18 13 27 25 45 5 Catastrophic 54 | . 1 . 1 2 . . 7 . 5 . 1 . . . . 2 . 3 1 . . . 2 3 2 5 7 11 1 Database Lockouts . | . . . . . . . . . . . . . . . . . . . . . . . . . . . . . . Manual 451 | . 18 . 3 15 17 . 35 . 44 . 3 . . . . 31 . 38 6 1 . 12 14 32 4 54 42 73 9 Terminals 575 | . 20 . 11 32 17 . 39 . 54 3 . . . . 1 39 . 46 10 1 . 16 23 39 15 66 47 84 12 Fabricators 105 | . . . . . . . 9 . 21 . . . . . . 18 . 10 . . . . 14 . . 9 12 12 . Repair Stations 39 | . . . . 3 . . 3 . 2 . 2 . . . . 9 . 6 . . . . 3 7 . . . 4 . Recycling Units 82 | . . . . 4 13 . 8 . 13 . 4 . . . . 7 . 6 . . . . 4 . . 10 . 13 . Scanalyzers 52 | . . . . . . . 3 . . . . . . . . 9 . 12 . . . . 11 4 . 11 1 1 . Garrison Access 40 | . . . . 2 . . 2 . 9 . . . . . . 4 . 4 . . . 1 2 1 1 2 2 10 . Terminal Hacks 210 | . 5 1 3 9 2 1 9 . 17 1 . 1 . 17 1 18 . 13 8 1 . 5 10 14 2 28 18 22 4 Record 6 | . . . . . . . . . . . . . . 5 1 . . . . . . . . . . . . . . Part Schematic 12 | . 1 . . 1 . . . . 1 . . . . 4 . 2 . . . . . . . 1 . . 2 . . Robot Schematic 3 | . 1 . . 2 . . . . . . . . . . . . . . . . . . . . . . . . . Robot Analysis 11 | . 1 . . 1 . . . . . . . . . 4 . . . 1 . . . . 1 3 . . . . . Prototype ID Bank 9 | . . . 1 . . . 1 . 2 . . . . 4 . . . 1 . . . . . . . . . . . Open Door 14 | . . 1 . 3 . . . . . . . 1 . . . . . 1 4 1 . . . . . . . 3 . Level Access Points 2 | . . . . . . . . . . . . . . . . . . . . . . 1 . . . 1 . . . Branch Access Points 4 | . . . . . . . . . . . . . . . . 1 . 1 . . . . . . . 1 . 1 . Emergency Access Points 1 | . . . . . . . . . . 1 . . . . . . . . . . . . . . . . . . . Machine Index 4 | . . . . . . . . . . . . . . . . . . 1 . . . 1 . . . 1 . 1 . Terminal Index 4 | . . . . . . . 1 . . . . . . . . 1 . . . . . . 1 . . . . 1 . Fabricator Index 1 | . . . . . . . 1 . . . . . . . . . . . . . . . . . . . . . . Scanalyzer Index 1 | . . . . . . . . . . . . . . . . 1 . . . . . . . . . . . . . Garrison Index 4 | . . . . . . . . . 1 . . . . . . 1 . 1 . . . . . . . . . 1 . Alert Level 1 | . . . . . . . . . 1 . . . . . . . . . . . . . . . . . . . . Unreport Threat 43 | . . . . . 1 . 1 . 3 . . . . . . 2 . 3 4 . . 2 6 3 2 8 3 5 . Locate Traps 24 | . 2 . . 2 . . 2 . 5 . . . . . . 3 . . . . . . . 1 . 4 1 3 1 Disarm Traps 1 | . . . . . . . . . . . . . . . . . . . . . . . . . . . . . 1 Reprogram Traps 10 | . . . . . . . 1 . . . . . . . . . . . . . . . . 1 . 5 3 . . Dispatch Records 2 | . . . . . . . . . . . . . . . . . . . . . . . . . . 1 1 . . Extermination Status 1 | . . . . . . . . . . . . . . . . . . . . . . . . . . . . 1 . Recall Investigation 7 | . . . . . . . . . 1 . . . . . . . . 1 . . . . . . . 2 2 1 . Recall Extermination 11 | . . . . . . . . . . . . . . . . 1 . 1 . . . . . 1 . 1 4 3 . Recall Reinforcements 4 | . . . . . . . . . 1 . . . . . . . . . . . . . . 2 . . 1 . . Recall Assault 1 | . . . . . . . . . . . . . . . . 1 . . . . . . . . . . . . . Hauler Manifests 2 | . . . 1 . . . . . . . . . . . . . . . . . . . . . . . 1 . . Registered Components 6 | . . . 1 . . . . . 1 . . . . . . 1 . 1 . . . . 1 . . . . 1 . Registered Prototypes 4 | . . . . . . . . . . . . . . . . 1 . 1 . . . . 1 . . 1 . . . Zone Layout 15 | . . . . . 1 . 2 . 1 . . . . . . 3 . . . . . 1 . 2 . 3 . 1 1 Proto ID Catalog 1 | . . . . . . 1 . . . . . . . . . . . . . . . . . . . . . . . Disengage Seal 1 | . . . . . . . . . . . . . . . . . . . . . . . . . . . . . 1 Fabricator Hacks 49 | . . . . . . . 4 . 9 . . . . . . 10 . 6 . . . . 7 . . 4 4 5 . Network Status 5 | . . . . . . . . . 1 . . . . . . 1 . . . . . . 1 . . 1 . 1 . Load Schematic 23 | . . . . . . . 3 . 4 . . . . . . 4 . 3 . . . . 3 . . 2 2 2 . Build 21 | . . . . . . . 1 . 4 . . . . . . 5 . 3 . . . . 3 . . 1 2 2 . Repair Station Hacks 27 | . . . . 2 . . 1 . 2 . 1 . . . . 7 . 4 . . . . 3 5 . . . 2 . Scan Component 15 | . . . . 1 . . 1 . 1 . . . . . . 4 . 3 . . . . 1 3 . . . 1 . Repair 10 | . . . . 1 . . . . 1 . . . . . . 3 . 1 . . . . 1 2 . . . 1 . Refit 2 | . . . . . . . . . . . 1 . . . . . . . . . . . 1 . . . . . . Recycling Unit Hacks 25 | . . . . 1 6 . 2 . 4 . 1 . . . . 2 . 2 . . . . 1 . . 3 . 3 . Report Inventory 18 | . . . . 1 6 . 1 . 3 . 1 . . . . 1 . 1 . . . . 1 . . 2 . 1 . Retrieve Components 7 | . . . . . . . 1 . 1 . . . . . . 1 . 1 . . . . . . . 1 . 2 . Scanalyzer 41 | . . . . . . . 1 . . . . . . . . 9 . 12 . . . . 11 2 . 5 . 1 . Insert Component 10 | . . . . . . . . . . . . . . . . 2 . 3 . . . . 2 1 . 2 . . . Analyze 20 | . . . . . . . . . . . . . . . . 4 . 7 . . . . 7 . . 2 . . . Retrieve Study 11 | . . . . . . . 1 . . . . . . . . 3 . 2 . . . . 2 1 . 1 . 1 . Garrison Access Hacks 25 | . . . . . . . 1 . 2 . . . . . . 2 . 4 . . . 1 2 1 1 2 2 7 . Unlock Access 3 | . . . . . . . . . 2 . . . . . . 1 . . . . . . . . . . . . . Seal Access 19 | . . . . . . . 1 . . . . . . . . 1 . 4 . . . 1 2 1 1 1 1 6 . Coupler Status 3 | . . . . . . . . . . . . . . . . . . . . . . . . . . 1 1 1 . Unauthorized Hacks 207 | . 3 . . 9 13 . 14 . 23 . 1 . . . . 17 . 13 1 . . 9 9 11 . 29 13 39 3 Terminals 126 | . 3 . . 8 7 . 9 . 8 . . . . . . 9 . 8 1 . . 9 5 10 . 18 7 21 3 Track 22 | . . . . . . . 1 . . . . . . . . 1 . . . . . 1 1 1 . 4 5 7 1 Assimilate 15 | . . . . . . . . . . . . . . . . 1 . 4 . . . 1 . 1 . 2 2 3 1 Botnet 28 | . 2 . . 2 2 . 2 . 2 . . . . . . 2 . 2 1 . . 2 2 2 . 3 . 4 . Detonate 4 | . . . . . . . . . . . . . . . . . . . . . . 1 . . . 2 . 1 . Disrupt 2 | . . . . . . . . . . . . . . . . . . 1 . . . . . . . . . . 1 Operators 11 | . 1 . . 1 . . 1 . 1 . . . . . . 1 . 1 . . . 1 1 1 . 2 . . . Skim 42 | . . . . 5 5 . 5 . 5 . . . . . . 4 . . . . . 1 1 5 . 5 . 6 . Sabotage 2 | . . . . . . . . . . . . . . . . . . . . . . 2 . . . . . . . Fabricators 30 | . . . . . . . 1 . 5 . . . . . . 2 . 3 . . . . 4 . . 4 5 6 . Report 2 | . . . . . . . . . . . . . . . . . . . . . . . . . . 1 . 1 . Prioritize 13 | . . . . . . . . . 2 . . . . . . 2 . 2 . . . . 2 . . 1 2 2 . Liberate 7 | . . . . . . . . . 2 . . . . . . . . . . . . . 1 . . 1 2 1 . Fabnet 1 | . . . . . . . . . . . . . . . . . . . . . . . . . . . . 1 . Haulers 6 | . . . . . . . . . 1 . . . . . . . . 1 . . . . 1 . . 1 1 1 . Recompile 1 | . . . . . . . 1 . . . . . . . . . . . . . . . . . . . . . . Repair Stations 1 | . . . . . . . 1 . . . . . . . . . . . . . . . . . . . . . . Mechanics 1 | . . . . . . . 1 . . . . . . . . . . . . . . . . . . . . . . Recycling Units 41 | . . . . 1 6 . 3 . 8 . 1 . . . . 4 . 2 . . . . . . . 7 . 9 . Monitor 5 | . . . . . . . . . 1 . . . . . . . . . . . . . . . . 2 . 2 . Reject 9 | . . . . . . . 1 . 3 . . . . . . . . . . . . . . . . 2 . 3 . Recyclers 7 | . . . . 1 . . 1 . 1 . . . . . . 1 . 1 . . . . . . . 1 . 1 . Mask 14 | . . . . . . . 1 . 3 . 1 . . . . 3 . 1 . . . . . . . 2 . 3 . Tunnel 6 | . . . . . 6 . . . . . . . . . . . . . . . . . . . . . . . . Scanalyzers 2 | . . . . . . . . . . . . . . . . . . . . . . . . 1 . . 1 . . Researchers 2 | . . . . . . . . . . . . . . . . . . . . . . . . 1 . . 1 . . Garrison Access 7 | . . . . . . . . . 2 . . . . . . 2 . . . . . . . . . . . 3 . Broadcast 3 | . . . . . . . . . 1 . . . . . . 1 . . . . . . . . . . . 1 . Reprogram 1 | . . . . . . . . . 1 . . . . . . . . . . . . . . . . . . . . Intercept 1 | . . . . . . . . . . . . . . . . . . . . . . . . . . . . 1 . Watchers 2 | . . . . . . . . . . . . . . . . 1 . . . . . . . . . . . 1 . Data Cores Recovered 6 | . . . . 1 . . . . 1 . . . . . . . . . . . . . . . 1 . . 2 1 Used 1 | . . . . . . . . . 1 . . . . . . . . . . . . . . . . . . . . Hacking Detections 179 | . 5 . 4 10 10 . 20 . 23 1 3 . . . 1 25 . 16 1 . . 1 10 9 3 14 5 16 2 Full Trace Events 27 | . 1 . . 1 . . 1 . 4 1 . . . . . 5 . 4 . . . . 3 . 1 2 2 2 . Feedback Events 3 | . . . . . . . . . . 1 . . . . . . . . . . . . . . 2 . . . . Corruption 2 | . . . . . . . . . . 1 . . . . . . . . . . . . . . 1 . . . . Hackware Fried 1 | . . . . . . . . . . . . . . . . . . . . . . . . . 1 . . . . Feedback Blocked . | . . . . . . . . . . . . . . . . . . . . . . . . . . . . . . Robot Schematics Acquired 54 | . 1 . . 2 . . . . . . . . . . . . . . . . . . . 51 . . . . . Robots Built 2 | . . . . . . . . . . . . . . . . 2 . . . . . . . . . . . . . Authchips . | . . . . . . . . . . . . . . . . . . . . . . . . . . . . . . Time 187 | . . . . . . . . . . . . . . . . 187 . . . . . . . . . . . . . Total Robot Build Rating 14 | . . . . . . . . . . . . . . . . 14 . . . . . . . . . . . . . Part Schematics Acquired 51 | . 1 . . 1 . 1 . . 1 . . . . 4 . 4 . 3 . . . . 2 12 16 1 5 . . Parts Built 20 | . . . . . . . 1 . 5 . . . . . . 4 . 2 . . . . 3 . . 1 2 2 . Authchips 2 | . . . . . . . 1 . . . . . . . . 1 . . . . . . . . . . . . . Time 1090 | . . . . . . . 50 . 356 . . . . . . 226 . 190 . . . . 100 . . 18 101 49 . Total Part Build Rating 108 | . . . . . . . 5 . 31 . . . . . . 22 . 10 . . . . 15 . . 3 10 12 . Part Studies Acquired 11 | . . . . . . . 1 . . . . . . . . 3 . 2 . . . . 2 1 . 1 . 1 . Parts Repaired 10 | . . . . 1 . . . . 1 . . . . . . 3 . 1 . . . . 1 2 . . . 1 . Time 545 | . . . . 51 . . . . 28 . . . . . . 225 . 99 . . . . 45 77 . . . 20 . Parts Recycled . | . . . . . . . . . . . . . . . . . . . . . . . . . . . . . . Recycled Matter . | . . . . . . . . . . . . . . . . . . . . . . . . . . . . . . Retrieved Matter . | . . . . . . . . . . . . . . . . . . . . . . . . . . . . . . Retrieved Components 19 | . . . . . . . 8 . 3 . . . . . . 3 . . . . . . . . . 3 . 2 . Parts Scanalyzed 8 | . . . . . . . . . . . . . . . . 2 . 3 . . . . 2 . . 1 . . . Part Schematics Acquired 8 | . . . . . . . . . . . . . . . . 2 . 3 . . . . 2 . . 1 . . . Parts Damaged 2 | . . . . . . . . . . . . . . . . 1 . . . . . . 1 . . . . . . Bothacking | -11 -10 -10 -9 -9 -9 -9 -6 -6 -6 -6 -5 -5 -5 -5 -4 -4 -4 -4 -4 -4 -4 -4 -3 -3 -3 -2 -2 -1 -1 ------------ Run | Yrd Mat Min Mat Sto Rec Scr Fac Was Fac Gar Fac Upp Upp Zhi Pro Fac Was Fac Ext Cet Arc Hub Res Qua Frg Res Tes Acc Com Used RIF Installer 1 | . . . . . . . . . . 1 . . . . . . . . . . . . . . . . . . . Robots Hacked 15 | . . . . . . 2 1 . . 1 3 . . 3 . 5 . . . . . . . . . . . . . Non-combat 9 | . . . . . . . 1 . . . 3 . . . . 5 . . . . . . . . . . . . . Combat 6 | . . . . . . 2 . . . 1 . . . 3 . . . . . . . . . . . . . . . Robot Hacks Applied 17 | . . . . . . 2 1 . . 1 4 . . 3 . 6 . . . . . . . . . . . . . parse_system 5 | . . . . . . 2 . . . . . . . 3 . . . . . . . . . . . . . . . find_chute 4 | . . . . . . . 1 . . . 1 . . . . 2 . . . . . . . . . . . . . find_fabricator 2 | . . . . . . . . . . . 1 . . . . 1 . . . . . . . . . . . . . drop_inventory 4 | . . . . . . . . . . . 1 . . . . 3 . . . . . . . . . . . . . map_route 1 | . . . . . . . . . . . 1 . . . . . . . . . . . . . . . . . . formatsys_high 1 | . . . . . . . . . . 1 . . . . . . . . . . . . . . . . . . . Relay Couplers Released 38 | . . . . . . . . . 4 23 . . . . . 1 . 2 . . . 1 . . 4 . 1 2 . Machine Destruction 30 | . . . . . . . . . . 23 . . . . . 1 . 2 . . . 1 . . . . 1 2 . Programmers 8 | . . . . . . . . . 4 . . . . . . . . . . . . . . . 4 . . . . Attached 5 | . . . . . . . . . . 3 . . . 1 . . . . . . . . . . . . . 1 . Fabnet Peak Effective % . | . . . . . . . . . . . . . . . . . . . . . . . . . . . . . . Robots Rewired 37 | . . . . . 5 . . . . 21 . . . . . . . . 10 . . . 1 . . . . . . Allies Hacked 25 | . . . . . . . 2 . 4 . 2 . . . . 5 . . 1 . . . 5 . 4 . 1 1 . Hacks Repelled 5 | . . . . . . . . . 1 . . . . . . . . . . . . . 4 . . . . . . Allies | -11 -10 -10 -9 -9 -9 -9 -6 -6 -6 -6 -5 -5 -5 -5 -4 -4 -4 -4 -4 -4 -4 -4 -3 -3 -3 -2 -2 -1 -1 -------- Run | Yrd Mat Min Mat Sto Rec Scr Fac Was Fac Gar Fac Upp Upp Zhi Pro Fac Was Fac Ext Cet Arc Hub Res Qua Frg Res Tes Acc Com Total Allies 360 | . . 3 . . 5 5 3 19 43 22 4 . . . . 65 1 59 27 5 . . 21 28 8 1 7 30 4 Largest Group 43 | . . 3 3 1 6 11 3 19 42 19 11 . . . . 10 2 31 43 15 9 5 11 35 25 1 6 24 13 Highest-Rated Group 998 | . . 40 40 16 80 321 30 702 730 515 261 . . . . 112 16 336 998 863 731 398 291 388 365 10 66 239 132 Highest-Rated Ally 159 | . . 16 16 16 21 50 10 50 50 85 81 . . . . 56 10 26 159 159 159 96 82 120 116 10 26 45 26 Total Orders 146 | . . . . 8 2 46 . . . . 11 . . . . 5 . 4 . . . 3 . . 6 6 5 2 48 STAY 45 | . . . . 1 1 29 . . . . 5 . . . . . . 3 . . . 1 . . 2 . 1 1 1 ROAM 24 | . . . . . . . . . . . . . . . . . . . . . . . . . . . 2 . 22 FOLLOW 26 | . . . . 1 1 13 . . . . 6 . . . . . . . . . . 2 . . 2 . 1 . . GUARD 1 | . . . . . . 1 . . . . . . . . . . . . . . . . . . . . . . . EXPLORE 32 | . . . . 6 . 2 . . . . . . . . . . . . . . . . . . . . . . 24 RETURN 18 | . . . . . . 1 . . . . . . . . . 5 . 1 . . . . . . 2 6 1 1 1 Ally Attacks 4618 | . . 7 43 23 . 78 11 118 775 189 127 . . . . 575 . 475 319 69 25 22 225 438 248 12 51 283 505 Total Damage 82074 | . . 62 406 239 . 1400 168 3410 11712 5140 2176 . . . . 7846 . 6344 5800 2304 983 701 4743 6485 4872 708 793 3103 12679 Kills 662 | . . 2 4 6 . 12 1 7 125 34 24 . . . . 90 . 81 47 10 6 5 35 49 28 4 11 24 57 Allies Corrupted 28 | . . . . . . 2 . . 4 1 . . . . . 7 . 2 1 . . . . 5 1 . . . 5 Allies Melted 5 | . . . . . . . . . . . 2 . . . . 2 . 1 . . . . . . . . . . . Intel | -11 -10 -10 -9 -9 -9 -9 -6 -6 -6 -6 -5 -5 -5 -5 -4 -4 -4 -4 -4 -4 -4 -4 -3 -3 -3 -2 -2 -1 -1 ------- Run | Yrd Mat Min Mat Sto Rec Scr Fac Was Fac Gar Fac Upp Upp Zhi Pro Fac Was Fac Ext Cet Arc Hub Res Qua Frg Res Tes Acc Com Active Infowar (turns) 29123 | 14 1679 5179 572 . . . 1392 264 1388 1 842 204 66 106 102 2389 128 1391 736 292 1817 352 986 1786 4102 526 597 1913 299 Optics 10134 | . . . . . . . 1354 264 718 . . . . . . . . . . . . . . 361 4102 526 597 1913 299 Sensors 19028 | . . . . . . . 1305 264 1378 1 842 204 66 106 102 1911 128 1368 736 292 1817 352 986 1786 2695 488 594 1607 . IFF 260 | . . . . . . . 260 . . . . . . . . . . . . . . . . . . . . . . Zeronet 492 | . . . . . . . . . . . . . . . . . . . . . . . . . . . . 225 267 Terrain 205 | . . . . . . . . . . . . . . . . . . . . . . . 205 . . . . . . Structural 3516 | . . . . . . . 313 264 347 . . . . . . 674 . . 42 211 382 . . . . 454 249 580 . Seismic 7444 | 14 1679 5179 572 . . . . . . . . . . . . . . . . . . . . . . . . . . T.N.C. 848 | . . . . . . . 342 . . . . . . . . 190 . 316 . . . . . . . . . . . Cloaking 2324 | . . . . . . . . . . . . . . . . . . . . . . . . . 205 . 540 1579 . Jamming 7816 | . . . . . . . . . . . . . . . . 1150 . 336 685 292 12 . 81 1786 1275 103 268 1686 142 Robot Analysis Total 102 | . 1 . . 1 . . . . . . . . . 4 . . . 1 . . . . 1 94 . . . . . Derelict Logs Recovered 4 | . . 3 . . . . . . . . . . . . 1 . . . . . . . . . . . . . . Drone Launches 69 | . . . . 16 . 4 . . . . . . . . . 7 . 2 . . . . . . 4 10 5 6 15 Drone Recoveries 39 | . . . . 2 . 2 . . . . . . . . . 7 . 2 . . . . . . 2 10 5 6 3 Exploration | -11 -10 -10 -9 -9 -9 -9 -6 -6 -6 -6 -5 -5 -5 -5 -4 -4 -4 -4 -4 -4 -4 -4 -3 -3 -3 -2 -2 -1 -1 ------------- Run | Yrd Mat Min Mat Sto Rec Scr Fac Was Fac Gar Fac Upp Upp Zhi Pro Fac Was Fac Ext Cet Arc Hub Res Qua Frg Res Tes Acc Com Turns Passed 40867 | 92 1679 5179 639 1375 1206 4973 1410 264 1579 1471 842 204 66 108 102 2518 128 1417 736 292 1817 352 986 1786 4102 526 597 1913 2508 Spaces Moved 46114 | 64 316 831 288 633 717 4105 2530 448 2781 1971 1606 545 226 220 390 4581 270 2504 800 213 428 576 1935 2536 4654 2288 1488 4150 2020 Core 565 | 7 . 264 . . . . 1 . . . . . . . . . . . . . 214 . . . 79 . . . . Treads 162 | . 1 . . . . 10 . . . . . . . . . . . . . . . . . . . . . 151 . Legs 467 | . . . . . . . . . . . . . . . . . . . . . . . . . 113 . . 354 . Wheels 4270 | 57 315 567 288 633 717 1693 . . . . . . . . . . . . . . . . . . . . . . . Hover 2585 | . . . . . . . . . . . . . . . . 1 . 2 . . . . . . 2582 . . . . Flight 38065 | . . . . . . 2402 2529 448 2781 1971 1606 545 226 220 390 4580 270 2502 800 213 214 576 1935 2536 1880 2288 1488 3645 2020 Fastest Speed 5 | 50 90 135 135 135 150 34 5 23 23 23 23 29 29 23 23 18 23 20 24 24 30 30 19 20 15 9 11 8 10 Average Speed 50 | 85 156 584 136 149 150 84 24 25 24 26 23 29 29 25 24 27 23 25 24 28 315 30 26 23 42 11 11 25 43 Slowest Speed 1550 | 90 480 1550 150 150 150 180 200 103 26 105 23 29 29 29 26 120 23 260 88 30 600 30 102 24 1350 73 73 213 75 Overloaded Moves 201 | . . . . . . . 17 . . 1 15 . . . . 2 . 1 . . . . . 1 96 4 . 64 . Propulsion Burnouts . | . . . . . . . . . . . . . . . . . . . . . . . . . . . . . . Robots Hopped 198 | . . . . . . 1 21 . 14 6 3 . . . . 44 . 19 11 . . 4 15 12 1 9 7 27 4 Potential Cave-ins 7 | . . . . . . . . . . . . . . . . . . . . . . 2 . . 3 . 2 . . Cave-ins Triggered . | . . . . . . . . . . . . . . . . . . . . . . . . . . . . . . Teleports 4 | . . . . . . . . . . . . . . 1 . . . . . . . . . . 1 . . 2 . Exploration Rate (%) 65 | 4 46 95 28 84 92 95 58 94 52 97 23 73 39 60 62 67 90 55 70 66 87 33 55 94 47 54 94 64 94 Regions Visited 29 Branch Regions 16 Pre-discovered Areas 16 | . . 1 . 2 6 1 2 . . . . . . 3 . . . . . . . . . 1 . . . . . Known Exits Taken 19 | . . . 1 . 1 . . . 1 . 1 1 1 1 1 . . 1 1 1 1 1 1 1 1 1 1 1 . Unknown Exits Taken 5 | 1 1 1 . 1 . 1 . . . . . . . . . . . . . . . . . . . . . . . Scrap Searched 17 | . . 2 . . . 8 . . . . . 3 3 . 1 . . . . . . . . . . . . . . Spaces Dug 543 | . . 19 10 26 1 . 31 . 5 19 5 5 . . . 23 . 26 7 . . 170 50 7 6 13 77 43 . Terrain Destroyed 974 | 3 1 20 11 29 1 . 45 52 46 67 21 5 . . . 75 . 26 7 . . 170 78 7 123 13 106 56 12 Melee 125 | . . . 3 . 1 . 24 . . . . 4 . . . 21 . 3 7 . . 3 1 7 5 13 9 24 . Projectile 115 | . 1 1 3 3 . . 4 . 11 22 9 1 . . . 8 . 1 . . . . . . 46 . 4 1 . AOE 733 | 3 . 19 5 26 . . 17 52 35 45 12 . . . . 46 . 22 . . . 167 77 . 72 . 92 31 12 Terrain Rammed . | . . . . . . . . . . . . . . . . . . . . . . . . . . . . . . Walls Destroyed . | . . . . . . . . . . . . . . . . . . . . . . . . . . . . . . Machines Disabled . | . . . . . . . . . . . . . . . . . . . . . . . . . . . . . . Actions | -11 -10 -10 -9 -9 -9 -9 -6 -6 -6 -6 -5 -5 -5 -5 -4 -4 -4 -4 -4 -4 -4 -4 -3 -3 -3 -2 -2 -1 -1 --------- Run | Yrd Mat Min Mat Sto Rec Scr Fac Was Fac Gar Fac Upp Upp Zhi Pro Fac Was Fac Ext Cet Arc Hub Res Qua Frg Res Tes Acc Com Total 61296 | 85 1431 1126 478 937 835 5590 3135 595 3503 2789 2046 577 225 259 396 5623 335 3158 1307 440 879 741 2313 3607 6296 2455 1792 4871 3472 Wait 11513 | 3 1052 276 92 174 32 1430 406 121 539 528 393 11 . 6 6 728 63 548 467 210 427 163 253 963 673 92 145 490 1222 Move 45718 | 63 315 830 287 632 716 4102 2491 447 2753 1960 1601 544 225 219 389 4499 269 2467 779 212 427 567 1907 2514 4651 2270 1473 4097 2012 Hop 171 | . . . . . . 1 18 . 13 4 2 . . . . 38 . 17 9 . . 4 12 9 1 8 7 25 3 Pick Up 344 | 5 17 3 17 14 . 8 20 4 8 7 4 2 . 1 . 28 . 9 3 5 1 . 14 18 103 9 14 19 11 Fast Attach 339 | 7 . . 2 6 . 10 22 5 15 19 4 2 . 8 . 47 1 15 3 . 6 1 14 9 85 7 16 33 2 Attach 232 | . . . 4 . . 4 13 2 6 4 6 . . 1 . 20 . 8 . 2 . . 5 1 100 6 13 15 22 Detach 139 | . . . 1 3 . 1 5 2 4 3 3 . . . . 15 . 6 . . . . 1 . 65 3 9 8 10 Swap 225 | 1 9 4 10 10 6 1 12 1 7 6 . 2 . 4 . 24 1 11 1 2 3 . 12 3 45 7 17 17 9 Drop 497 | . 2 . 21 20 . 19 28 9 19 22 5 3 . 7 1 42 1 16 3 5 5 1 23 24 121 12 27 50 11 Fire 791 | 6 36 13 39 71 3 . 34 4 127 64 15 2 . 3 . 23 . 8 . 4 . . 6 1 252 . 20 24 36 Melee 963 | . . . 5 . 2 12 71 . 5 77 13 11 . 10 . 136 . 53 16 . 10 5 51 64 120 41 51 77 133 Ram . | . . . . . . . . . . . . . . . . . . . . . . . . . . . . . . Kick . | . . . . . . . . . . . . . . . . . . . . . . . . . . . . . . Crush . | . . . . . . . . . . . . . . . . . . . . . . . . . . . . . . Escape Stasis 208 | . . . . . . . 15 . . 75 . . . . . 15 . . . . . . 11 . 77 . . 15 . Rewire 137 | . . . . . 76 1 . . 3 20 . . . . . 2 . . 26 . . . 4 1 3 . . 1 . Trap 11 | . . . . . . 1 . . 4 . . . . . . 6 . . . . . . . . . . . . . Miscellaneous 8 | . . . . 7 . . . . . . . . . . . . . . . . . . . . . . . . 1 Route ------- -11/Scrapyard -10/Materials (discovered 2 exits: *Mat / *Min) -10/Mines (discovered 2 exits: *Mat x2) -9/Materials -9/Storage (discovered 2 exits: [*Mat] / *Rec) -9/Recycling (discovered 2 exits: [*Fac] / *Scr) -9/Scraptown (discovered 2 exits: *Fac x2) -6/Factory (discovered 3 exits: *Fac / Low x2) -6/Waste -6/Factory (discovered 4 exits: *Fac / *Low / Gar / Gar) -6/Garrison (discovered 3 exits: *Fac x3) -5/Factory (discovered 2 exits: *Fac / *Upp) -5/Upper Caves -5/Upper Caves -5/Zhirov -4/Proximity Caves -4/Factory (discovered 8 exits: *Res x3 / Upp x2 / Ext x2 / Gar) -4/Waste -4/Factory (discovered 7 exits: *Res x3 / Upp x2 / *Ext x2) -4/Extension (discovered 2 exits: *Res / *Cet) -4/Cetus (discovered 2 exits: *Res / *Arc) -4/Archives (discovered 3 exits: *Res / *Hub x2) -4/Hub_04(d) (discovered 4 exits: *Res x4) -3/Research (discovered 3 exits: *Res / *Arm / *Qua) -3/Quarantine (discovered 3 exits: *Res / *Sec / *Frg) -3/Protoforge -2/Research (discovered 5 exits: Acc x3 / *Tes x2) -2/Testing -1/Access (discovered 2 exits: Sur / *Com) -1/Command (discovered 2 exits: *Sur x2) 0b11 Command History --------- Turn | Location | Event 10 | -11/Scrapyard | Discovered new exit (range 15) 93 | -11/Scrapyard | Entered Materials 172 | -10/Materials | Discovered new exit (range 15) 302 | -10/Materials | Discovered new exit (range 10) 317 | -10/Materials | Build established: Mutant 1772 | -10/Materials | Entered Mines 1802 | -10/Mines | Assisted by bots powering up and referring to "LRC-V3" 1849 | -10/Mines | Met a Derelict shopkeep closing up shop 1947 | -10/Mines | Learned location of 1 exit from Materials 1986 | -10/Mines | Learned location of Storage (-9) 2010 | -10/Mines | Learned Materials stockpile data 2204 | -10/Mines | Discovered new exit (range 6) 2333 | -10/Mines | Discovered new exit (range 10) 6951 | -10/Mines | Entered Materials 6951 | -9/Materials | Accompanied by 3 allies 6951 | -9/Materials | Evolved 2 slots: Propulsion x2 6952 | -9/Materials | Identified exit to Storage 7586 | -9/Materials | Destroyed 7 combat bots 7590 | -9/Materials | Entered Storage 7590 | -9/Storage | Accompanied by 1 ally 8085 | -9/Storage | Discovered new exit (range 15) 8865 | -9/Storage | Repaired Imp. Flight Unit 8887 | -9/Storage | Used back door to open Recycling access 8887 | -9/Storage | Discovered new exit (range 5) 8894 | -9/Storage | Learned 4 Recycling zone layouts 8918 | -9/Storage | Learned 4 Recycling zone layouts 8965 | -9/Storage | Entered Recycling 8965 | -9/Recycling | Accompanied by 14 allies 9731 | -9/Recycling | Discovered new exit (range 8) 9831 | -9/Recycling | Learned Storage garrison access intel 9868 | -9/Recycling | Identified exit to Scraptown 9896 | -9/Recycling | Learned Storage emergency access door positions 9916 | -9/Recycling | Learned location of 3 exits from Materials 9927 | -9/Recycling | Learned Storage emergency access door positions 9928 | -9/Recycling | Learned Materials terminal intel 9931 | -9/Recycling | Learned Storage trap positions 9945 | -9/Recycling | Learned location of 1 exit from Recycling 9950 | -9/Recycling | Build established: Commander-Mutant 9971 | -9/Recycling | Learned Storage stockpile data 10007 | -9/Recycling | Learned Storage emergency access door positions 10104 | -9/Recycling | Scanned before Scraplab entrance 10125 | -9/Recycling | Entered Scraplab 10171 | -9/Recycling | Entered Scraptown 10171 | -9/Scraptown | Accompanied by 19 allies 10174 | -9/Scraptown | System corruption cleaned by C-Scrubber 10333 | -9/Scraptown | Discovered new exit (range 72) 10350 | -9/Scraptown | Heard Great Nut preacher, LISTEN AND RECITE! 10389 | -9/Scraptown | Visited IN-MT5's Study 10573 | -9/Scraptown | Visited UFD Registry 10573 | -9/Scraptown | Registered with UFD as "Armorbomber" 10615 | -9/Scraptown | Visited A0-MCA Data Center 10637 | -9/Scraptown | Visited Science Testing Area 10660 | -9/Scraptown | Visited Curators Association 10800 | -9/Scraptown | Visited Scrapoid Pod Storage 10828 | -9/Scraptown | Visited Derelict Rescue Squad 10897 | -9/Scraptown | Visited Modified Component R&D 10945 | -9/Scraptown | Visited DA-N13 Charitable Foundation 10951 | -9/Scraptown | Found DCF Scrap (29 items) 10989 | -9/Scraptown | Visited Science Guys 11041 | -9/Scraptown | Visited Infowarlord's Domain 11117 | -9/Scraptown | Discovered new exit (range 43) 11671 | -9/Scraptown | Visited Assassins FH 12158 | -9/Scraptown | Visited Cyclists 12168 | -9/Scraptown | Entered Cyclist Reading Room 12320 | -9/Scraptown | Given an A+ rating by A0-MCA 12328 | -9/Scraptown | Found A0-MCA's Component Scanner 12430 | -9/Scraptown | Found Scrapoid Pod 12633 | -9/Scraptown | Scrapoid Pod released 09S05-D (x5) 13043 | -9/Scraptown | Visited Cave Peace 13085 | -9/Scraptown | Warned about trapping Scraptown 14124 | -9/Scraptown | Found Prototype Processor 14448 | -9/Scraptown | Visited Symbiants 14463 | -9/Scraptown | Visited CR-KLE's Repair Center 14510 | -9/Scraptown | Build established: Mutant 14698 | -9/Scraptown | Found Exp. Signal Interpreter 14963 | -9/Scraptown | CR-KLE repaired 3 parts 15109 | -9/Scraptown | Attacked by Scraptown defenders 15144 | -9/Scraptown | Entered Factory 15144 | -6/Factory | Evolved 6 slots: Power x1, Propulsion x1, Utility x4 15144 | -6/Factory | Identified Expert System 15171 | -6/Factory | Garrison activated, responded to threat 15173 | -6/Factory | Lost 8 allies 15603 | -6/Factory | Build established: Scout 15805 | -6/Factory | Discovered new exit (range 10) 15807 | -6/Factory | Identified exit to Factory 15867 | -6/Factory | Learned Extension security intel 15912 | -6/Factory | Learned location of 1 exit from Upper Caves 15947 | -6/Factory | Learned location of 2 exits from Lower Caves 15983 | -6/Factory | Learned Extension security intel 15986 | -6/Factory | Identified exit to Lower Caves 15987 | -6/Factory | Learned location of 2 exits from Archives 15988 | -6/Factory | Learned location of Zion (-6) 15996 | -6/Factory | Learned location of Extension (-4) 16400 | -6/Factory | Fabricated IN-MT5's Pitchfork "Insurrection"? 16491 | -6/Factory | Reprogrammed and armed K-01 Serf 16492 | -6/Factory | Reprogrammed and armed K-01 Serf 16494 | -6/Factory | Reprogrammed and armed K-01 Serf 16499 | -6/Factory | Cargo convoy interrupted 16550 | -6/Factory | Lost 3 allies 16554 | -6/Factory | Manually triggered Chute Trap 16554 | -6/Factory | Sucked down chute 16554 | -6/Factory | Entered Waste 16557 | -6/Waste | Spotted C-40 Crusher 16557 | -6/Waste | Spotted C-40 Crusher 16559 | -6/Waste | Spotted C-40 Crusher 16559 | -6/Waste | Spotted C-40 Crusher 16559 | -6/Waste | Spotted C-40 Crusher 16562 | -6/Waste | Spotted C-40 Crusher 16580 | -6/Waste | Discovered new exit (range 22) 16596 | -6/Waste | Warlord forces began an assault 16709 | -6/Waste | Destroyed C-40 Crusher 16724 | -6/Waste | Destroyed C-40 Crusher 16793 | -6/Waste | Identified exit to Factory 16818 | -6/Waste | Entered Factory 16818 | -6/Factory | Accompanied by 14 allies 16855 | -6/Factory | Repaired Smartbomb Launcher 16970 | -6/Factory | Reprogrammed and armed K-01 Serf 16987 | -6/Factory | Reprogrammed and armed K-01 Serf 16987 | -6/Factory | Reprogrammed and armed K-01 Serf 17043 | -6/Factory | Reprogrammed and armed K-01 Serf 17044 | -6/Factory | Reprogrammed and armed K-01 Serf 17101 | -6/Factory | Reprogrammed and armed K-01 Serf 17101 | -6/Factory | Reprogrammed and armed K-01 Serf 17119 | -6/Factory | Reprogrammed and armed K-01 Serf 17188 | -6/Factory | Spotted B-75 Beast 17208 | -6/Factory | Identified exit to Garrison 17235 | -6/Factory | Fabricated IN-MT5's Pitchfork "Insurrection" (x1) 17261 | -6/Factory | Discovered exit to Lower Caves (range 7) 17293 | -6/Factory | Reprogrammed and armed K-01 Serf 17326 | -6/Factory | Reprogrammed and armed K-01 Serf 17329 | -6/Factory | Reprogrammed and armed K-01 Serf 17339 | -6/Factory | Garrison activated, responded to threat 17378 | -6/Factory | Reprogrammed and armed K-01 Serf 17384 | -6/Factory | Reprogrammed and armed K-01 Serf 17426 | -6/Factory | Reprogrammed and armed K-01 Serf 17433 | -6/Factory | Reprogrammed and armed K-01 Serf 17433 | -6/Factory | Reprogrammed and armed K-01 Serf 17434 | -6/Factory | Reprogrammed and armed K-01 Serf 17434 | -6/Factory | Reprogrammed and armed K-01 Serf 17435 | -6/Factory | Reprogrammed and armed K-01 Serf 17436 | -6/Factory | Reprogrammed and armed K-01 Serf 17452 | -6/Factory | Fabricated Q-thruster? 17452 | -6/Factory | Reprogrammed and armed K-01 Serf 17462 | -6/Factory | Reprogrammed and armed K-01 Serf 17463 | -6/Factory | Build established: Hacker-Scout 17465 | -6/Factory | Reprogrammed and armed K-01 Serf 17469 | -6/Factory | Reprogrammed and armed K-01 Serf 17470 | -6/Factory | Reprogrammed and armed K-01 Serf 17501 | -6/Factory | Reprogrammed and armed K-01 Serf 17502 | -6/Factory | Reprogrammed and armed K-01 Serf 17504 | -6/Factory | Reprogrammed and armed K-01 Serf 17553 | -6/Factory | Discovered exit to Factory (range 16) 17554 | -6/Factory | Reprogrammed and armed K-01 Serf 17556 | -6/Factory | Reprogrammed and armed K-01 Serf 17557 | -6/Factory | Reprogrammed and armed K-01 Serf 17558 | -6/Factory | Reprogrammed and armed K-01 Serf 17558 | -6/Factory | Reprogrammed and armed K-01 Serf 17558 | -6/Factory | Reprogrammed and armed K-01 Serf 17592 | -6/Factory | Lost 3 allies 17601 | -6/Factory | Reprogrammed and armed K-01 Serf 17617 | -6/Factory | Fabricated IN-MT5's Pitchfork "Insurrection"? 17630 | -6/Factory | Reprogrammed and armed K-01 Serf 17631 | -6/Factory | Reprogrammed and armed K-01 Serf 17662 | -6/Factory | High security lockdown imminent 17675 | -6/Factory | Learned 2 Extension zone layouts 17694 | -6/Factory | Identified exit to Garrison 17709 | -6/Factory | Learned 2 Lower Caves zone layouts 17716 | -6/Factory | Fabricated IN-MT5's Pitchfork "Insurrection"? 17738 | -6/Factory | Reprogrammed and armed K-01 Serf 17742 | -6/Factory | High security lockdown engaged 17748 | -6/Factory | Reprogrammed and armed K-01 Serf 17749 | -6/Factory | Reprogrammed and armed K-01 Serf 17763 | -6/Factory | Reprogrammed and armed K-01 Serf 17820 | -6/Factory | Build established: Hacker-Sprinter 17944 | -6/Factory | Lost 5 allies 17972 | -6/Factory | Garrison activated, responded to threat 18051 | -6/Factory | Lost 5 allies 18191 | -6/Factory | Lost 6 allies 18192 | -6/Factory | Sterilization system engaged 18192 | -6/Factory | Non-combat units ordered to evacuate 18292 | -6/Factory | Combat units ordered to evacuate 18371 | -6/Factory | Lost 3 allies 18397 | -6/Factory | Entered Garrison 18397 | -6/Garrison | Accompanied by 18 allies 18411 | -6/Garrison | Installed Relay Interface Framework 18413 | -6/Garrison | Triggered checkpoint 18419 | -6/Garrison | Lost 3 allies 18456 | -6/Garrison | Lost 3 allies 18529 | -6/Garrison | Triggered checkpoint 18540 | -6/Garrison | Garrison Relay disabled 18541 | -6/Garrison | Triggered checkpoint 18634 | -6/Garrison | Garrison Relay disabled 18735 | -6/Garrison | Triggered checkpoint 18736 | -6/Garrison | Triggered checkpoint 18769 | -6/Garrison | Triggered checkpoint 18769 | -6/Garrison | Triggered checkpoint 18812 | -6/Garrison | Lost 5 allies 18862 | -6/Garrison | Spotted B-75 Beast 18886 | -6/Garrison | Destroyed B-75 Beast 18909 | -6/Garrison | Lost 9 allies 18937 | -6/Garrison | Discovered exit to Factory (range 12) 18951 | -6/Garrison | Triggered checkpoint 18991 | -6/Garrison | Garrison Relay disabled 18997 | -6/Garrison | Garrison Relay disabled 19005 | -6/Garrison | Triggered checkpoint 19048 | -6/Garrison | Lost 3 allies 19086 | -6/Garrison | Garrison Relay disabled 19107 | -6/Garrison | Discovered exit to Factory (range 15) 19260 | -6/Garrison | Discovered exit to Factory (range 10) 19273 | -6/Garrison | Spotted B-75 Beast 19284 | -6/Garrison | Lost 5 allies 19291 | -6/Garrison | Build established: Commander-Sprinter 19321 | -6/Garrison | Spotted B-86 Titan 19325 | -6/Garrison | Core integrity fell below 50% 19330 | -6/Garrison | Rewired B-75 Beast 19334 | -6/Garrison | Allies destroyed B-86 Titan 19337 | -6/Garrison | Allies destroyed B-75 Beast 19357 | -6/Garrison | Lost 3 parts (2n1w) 19531 | -6/Garrison | Triggered checkpoint 19576 | -6/Garrison | Garrison Relay disabled 19700 | -6/Garrison | Lost 3 allies 19868 | -6/Garrison | Entered Factory 19868 | -5/Factory | Accompanied by 9 allies 19868 | -5/Factory | Evolved 2 slots: Utility x2 20042 | -5/Factory | Discovered new exit (range 15) 20168 | -5/Factory | First assault squad dispatched 20228 | -5/Factory | Reprogrammed and armed K-01 Serf 20238 | -5/Factory | Unchained authorized (GL-D0S) 20258 | -5/Factory | Reprogrammed and armed K-01 Serf 20262 | -5/Factory | Reprogrammed and armed K-01 Serf 20312 | -5/Factory | Reprogrammed and armed K-01 Serf 20326 | -5/Factory | High security lockdown imminent 20370 | -5/Factory | Lost 8 allies 20406 | -5/Factory | High security lockdown engaged 20596 | -5/Factory | Discovered new exit (range 14) 20598 | -5/Factory | Build established: Scavenger-Sprinter 20615 | -5/Factory | Identified exit to Factory 20710 | -5/Factory | Identified exit to Upper Caves 20710 | -5/Factory | Entered Upper Caves 20711 | -5/Upper Caves | Identified exit to Upper Caves 20787 | -5/Upper Caves | Spotted B-75 Beast 20875 | -5/Upper Caves | Attached CPS modules to JM-MYL. 20894 | -5/Upper Caves | Found Botcube 20914 | -5/Upper Caves | Entered another Upper Caves area 20966 | -5/Upper Caves | Discovered new exit (range 8) 20968 | -5/Upper Caves | Identified exit to Zhirov 20977 | -5/Upper Caves | Spotted B-75 Beast 20980 | -5/Upper Caves | Entered Zhirov 20980 | -5/Zhirov | Discovered new exit (range 4) 20986 | -5/Zhirov | Met Zhirov 20998 | -5/Zhirov | Learned location of Quarantine (-3) 20998 | -5/Zhirov | Learned location of Testing (-2) 20998 | -5/Zhirov | Learned location of Command (-1) 21001 | -5/Zhirov | Zhirov requested help retrieving the SGEMP Prototype 21006 | -5/Zhirov | Found Alien Artifact 21006 | -5/Zhirov | Identified Integrated Reactor 21006 | -5/Zhirov | Installed Integrated Reactor, increased core energy generation (+10) 21036 | -5/Zhirov | Found Alien Artifact 21036 | -5/Zhirov | Identified Transdimensional Reconstructor 21036 | -5/Zhirov | Warped through subspace 21064 | -5/Zhirov | Build established: Hacker-Sprinter 21088 | -5/Zhirov | Identified exit to Proximity Caves 21088 | -5/Zhirov | Entered Proximity Caves 21104 | -4/Proximity Caves | Learned 4 Research zone layouts 21134 | -4/Proximity Caves | Spotted B-86 Titan 21173 | -4/Proximity Caves | Discovered exit to Factory (range 12) 21190 | -4/Proximity Caves | Entered Factory 21190 | -4/Factory | Evolved 2 slots: Utility x2 21191 | -4/Factory | Identified exit to Extension 21240 | -4/Factory | Identified exit to Garrison 21274 | -4/Factory | Repaired Cld. Cesium-ion Thruster? 21340 | -4/Factory | Spotted B-86 Titan 21436 | -4/Factory | Reprogrammed and armed K-01 Serf 21440 | -4/Factory | Reprogrammed and armed K-01 Serf 21501 | -4/Factory | Reprogrammed and armed K-01 Serf 21536 | -4/Factory | Repaired Smartbomb Launcher 21560 | -4/Factory | Reprogrammed and armed K-01 Serf 21643 | -4/Factory | Identified exit to Upper Caves 21661 | -4/Factory | Reprogrammed and armed K-01 Serf 21698 | -4/Factory | Reprogrammed and armed K-01 Serf 21723 | -4/Factory | Build established: Hacker-Scout 21732 | -4/Factory | Reprogrammed and armed K-01 Serf 21735 | -4/Factory | Lost 5 allies 21735 | -4/Factory | Reprogrammed and armed K-01 Serf 21737 | -4/Factory | Reprogrammed and armed K-01 Serf 21738 | -4/Factory | Reprogrammed and armed K-01 Serf 21805 | -4/Factory | Lost 3 allies 21827 | -4/Factory | Reprogrammed and armed K-01 Serf 21832 | -4/Factory | Reprogrammed and armed K-01 Serf 21893 | -4/Factory | Reprogrammed and armed K-01 Serf 21906 | -4/Factory | Reprogrammed and armed K-01 Serf 21909 | -4/Factory | Discovered new exit (range 16) 21913 | -4/Factory | Reprogrammed and armed K-01 Serf 21924 | -4/Factory | Lost 3 parts (1p1n1u) 21940 | -4/Factory | Search patrols dispatched 21995 | -4/Factory | Fabricated IN-MT5's Pitchfork "Insurrection"? 22002 | -4/Factory | Reprogrammed and armed K-01 Serf 22045 | -4/Factory | Reprogrammed and armed K-01 Serf 22059 | -4/Factory | Reprogrammed and armed K-01 Serf 22142 | -4/Factory | Fabricated H-77 Assassin? 22161 | -4/Factory | Lost 3 allies 22251 | -4/Factory | Reprogrammed and armed K-01 Serf 22262 | -4/Factory | Reprogrammed and armed K-01 Serf 22266 | -4/Factory | Reprogrammed and armed K-01 Serf 22320 | -4/Factory | Lost 3 allies 22394 | -4/Factory | Found Fusion Bomb Launcher 22427 | -4/Factory | Reprogrammed and armed K-01 Serf 22438 | -4/Factory | Reprogrammed and armed K-01 Serf 22468 | -4/Factory | Reprogrammed and armed K-01 Serf 22468 | -4/Factory | Reprogrammed and armed K-01 Serf 22559 | -4/Factory | Repaired Cld. Nuclear Pulse Thruster? 22575 | -4/Factory | Discovered new exit (range 12) 22578 | -4/Factory | Identified exit to Research 22580 | -4/Factory | Reprogrammed and armed K-01 Serf 22586 | -4/Factory | Reprogrammed and armed K-01 Serf 22595 | -4/Factory | Reprogrammed and armed K-01 Serf 22599 | -4/Factory | Reprogrammed and armed K-01 Serf 22640 | -4/Factory | Reprogrammed and armed K-01 Serf 22643 | -4/Factory | Reprogrammed and armed K-01 Serf 22665 | -4/Factory | Lost 4 allies 22671 | -4/Factory | Reprogrammed and armed K-01 Serf 22706 | -4/Factory | Reprogrammed and armed K-01 Serf 22745 | -4/Factory | Reprogrammed and armed K-01 Serf 22749 | -4/Factory | Reprogrammed and armed K-01 Serf 22774 | -4/Factory | Reprogrammed and armed K-01 Serf 22777 | -4/Factory | Reprogrammed and armed K-01 Serf 22784 | -4/Factory | Spotted B-86 Titan 22818 | -4/Factory | Fabricated Assault Drone Bay? 22821 | -4/Factory | Reprogrammed and armed K-01 Serf 22835 | -4/Factory | Build established: Hacker-Sprinter 22896 | -4/Factory | Lost 9 allies 22955 | -4/Factory | Reprogrammed and armed K-01 Serf 22957 | -4/Factory | Reprogrammed and armed K-01 Serf 22963 | -4/Factory | Fabricated IN-MT5's Pitchfork "Insurrection"? 22978 | -4/Factory | Reprogrammed and armed K-01 Serf 22996 | -4/Factory | Reprogrammed and armed K-01 Serf 22997 | -4/Factory | Reprogrammed and armed K-01 Serf 23007 | -4/Factory | Reprogrammed and armed K-01 Serf 23007 | -4/Factory | Reprogrammed and armed K-01 Serf 23009 | -4/Factory | Reprogrammed and armed K-01 Serf 23065 | -4/Factory | Fabricated IN-MT5's Pitchfork "Insurrection"? 23066 | -4/Factory | Reprogrammed and armed K-01 Serf 23079 | -4/Factory | Cargo convoy interrupted 23112 | -4/Factory | Reprogrammed and armed K-01 Serf 23114 | -4/Factory | Reprogrammed and armed K-01 Serf 23121 | -4/Factory | Lost 6 allies 23161 | -4/Factory | Lost 3 parts (2u1w) 23173 | -4/Factory | Reprogrammed and armed K-01 Serf 23174 | -4/Factory | Reprogrammed and armed K-01 Serf 23175 | -4/Factory | Reprogrammed and armed K-01 Serf 23176 | -4/Factory | Reprogrammed and armed K-01 Serf 23190 | -4/Factory | First assault squad dispatched 23231 | -4/Factory | Found Prototype Launcher 23231 | -4/Factory | Identified Com. Tesla Bomb Launcher 23237 | -4/Factory | Found Prototype Processor 23237 | -4/Factory | Identified Exp. Melee Analysis Suite 23295 | -4/Factory | Reprogrammed and armed K-01 Serf 23295 | -4/Factory | Reprogrammed and armed K-01 Serf 23295 | -4/Factory | Reprogrammed and armed K-01 Serf 23297 | -4/Factory | Reprogrammed and armed K-01 Serf 23300 | -4/Factory | Reprogrammed and armed K-01 Serf 23317 | -4/Factory | Reprogrammed and armed K-01 Serf 23319 | -4/Factory | Reprogrammed and armed K-01 Serf 23330 | -4/Factory | Found Exp. Hacking Suite 23383 | -4/Factory | Reprogrammed and armed K-01 Serf 23385 | -4/Factory | Discovered exit to Research (range 16) 23429 | -4/Factory | Reprogrammed and armed K-01 Serf 23629 | -4/Factory | Reprogrammed and armed K-01 Serf 23631 | -4/Factory | Reprogrammed and armed K-01 Serf 23638 | -4/Factory | Lost 3 parts (2p1n) 23708 | -4/Factory | Sucked down chute 23708 | -4/Factory | Entered Waste 23708 | -4/Waste | The area was eerily silent 23708 | -4/Waste | Met up with 1 ally sucked down the chute earlier 23728 | -4/Waste | 1 allies followed down the chute 23731 | -4/Waste | Discovered new exit (range 15) 23809 | -4/Waste | Identified exit to Factory 23836 | -4/Waste | Entered Factory 23836 | -4/Factory | Accompanied by 2 allies 23851 | -4/Factory | Reprogrammed and armed K-01 Serf 23854 | -4/Factory | Reprogrammed and armed K-01 Serf 23870 | -4/Factory | Reprogrammed and armed K-01 Serf 23931 | -4/Factory | Core integrity fell below 50% 23959 | -4/Factory | Lost 4 allies 23972 | -4/Factory | Lost 3 parts (1p1n1w) 23983 | -4/Factory | Reprogrammed and armed K-01 Serf 23988 | -4/Factory | Discovered exit to Extension (range 15) 24031 | -4/Factory | Discovered exit to Research (range 16) 24068 | -4/Factory | Reprogrammed and armed K-01 Serf 24182 | -4/Factory | Reprogrammed and armed K-01 Serf 24194 | -4/Factory | Reprogrammed and armed K-01 Serf 24197 | -4/Factory | Reprogrammed and armed K-01 Serf 24217 | -4/Factory | Reprogrammed and armed K-01 Serf 24247 | -4/Factory | Reprogrammed and armed K-01 Serf 24271 | -4/Factory | Reprogrammed and armed K-01 Serf 24336 | -4/Factory | First assault squad dispatched 24339 | -4/Factory | Reprogrammed and armed K-01 Serf 24339 | -4/Factory | Reprogrammed and armed K-01 Serf 24365 | -4/Factory | Reprogrammed and armed K-01 Serf 24444 | -4/Factory | Reprogrammed and armed K-01 Serf 24475 | -4/Factory | Reprogrammed and armed K-01 Serf 24476 | -4/Factory | Reprogrammed and armed K-01 Serf 24553 | -4/Factory | Reprogrammed and armed K-01 Serf 24600 | -4/Factory | Reprogrammed and armed K-01 Serf 24669 | -4/Factory | Reprogrammed and armed K-01 Serf 24669 | -4/Factory | Reprogrammed and armed K-01 Serf 24670 | -4/Factory | Reprogrammed and armed K-01 Serf 24679 | -4/Factory | Fabricated IN-MT5's Pitchfork "Insurrection"? 24723 | -4/Factory | Reprogrammed and armed K-01 Serf 24728 | -4/Factory | Reprogrammed and armed K-01 Serf 24729 | -4/Factory | Reprogrammed and armed K-01 Serf 24729 | -4/Factory | Reprogrammed and armed K-01 Serf 24730 | -4/Factory | Reprogrammed and armed K-01 Serf 24730 | -4/Factory | Reprogrammed and armed K-01 Serf 24732 | -4/Factory | Reprogrammed and armed K-01 Serf 24745 | -4/Factory | Reprogrammed and armed K-01 Serf 24757 | -4/Factory | Lost 7 allies 24772 | -4/Factory | Spotted B-86 Titan 24782 | -4/Factory | Reprogrammed and armed K-01 Serf 24785 | -4/Factory | Reprogrammed and armed K-01 Serf 24785 | -4/Factory | Discovered exit to Research (range 16) 24785 | -4/Factory | Reprogrammed and armed K-01 Serf 24794 | -4/Factory | Allies destroyed B-86 Titan 24806 | -4/Factory | Reprogrammed and armed K-01 Serf 24807 | -4/Factory | Reprogrammed and armed K-01 Serf 24810 | -4/Factory | Reprogrammed and armed K-01 Serf 24811 | -4/Factory | Reprogrammed and armed K-01 Serf 24820 | -4/Factory | Reprogrammed and armed K-01 Serf 24821 | -4/Factory | Reprogrammed and armed K-01 Serf 24856 | -4/Factory | Fabricated IN-MT5's Pitchfork "Insurrection"? 24881 | -4/Factory | Reprogrammed and armed K-01 Serf 24882 | -4/Factory | Reprogrammed and armed K-01 Serf 24883 | -4/Factory | Reprogrammed and armed K-01 Serf 24884 | -4/Factory | Reprogrammed and armed K-01 Serf 24887 | -4/Factory | Reprogrammed and armed K-01 Serf 24907 | -4/Factory | Lost 5 allies 24909 | -4/Factory | Reprogrammed and armed K-01 Serf 24910 | -4/Factory | Discovered exit to Research (range 15) 24915 | -4/Factory | Reprogrammed and armed K-01 Serf 24931 | -4/Factory | Reprogrammed and armed K-01 Serf 24933 | -4/Factory | Reprogrammed and armed K-01 Serf 24933 | -4/Factory | Reprogrammed and armed K-01 Serf 24933 | -4/Factory | Reprogrammed and armed K-01 Serf 24942 | -4/Factory | Reprogrammed and armed K-01 Serf 25033 | -4/Factory | Reprogrammed and armed K-01 Serf 25033 | -4/Factory | Reprogrammed and armed K-01 Serf 25037 | -4/Factory | Repaired Diametric Drive 25064 | -4/Factory | Reprogrammed and armed K-01 Serf 25064 | -4/Factory | Reprogrammed and armed K-01 Serf 25104 | -4/Factory | Garrison activated, responded to threat 25137 | -4/Factory | High security lockdown imminent 25217 | -4/Factory | High security lockdown engaged 25253 | -4/Factory | Entered Extension 25253 | -4/Extension | Accompanied by 28 allies 25264 | -4/Extension | Rescued a captive Derelict 25265 | -4/Extension | Rescued a captive Derelict 25294 | -4/Extension | Rescued a captive Derelict 25337 | -4/Extension | Rescued a captive Derelict 25338 | -4/Extension | Rescued a captive Derelict 25503 | -4/Extension | First assault squad dispatched 25507 | -4/Extension | Reprogrammed and armed K-01 Serf 25532 | -4/Extension | Reprogrammed and armed K-01 Serf 25562 | -4/Extension | Reprogrammed and armed K-01 Serf 25566 | -4/Extension | Reprogrammed and armed K-01 Serf 25635 | -4/Extension | Reprogrammed and armed K-01 Serf 25636 | -4/Extension | Reprogrammed and armed K-01 Serf 25653 | -4/Extension | Reprogrammed and armed K-01 Serf 25662 | -4/Extension | P-70 Sage assimilated allied K-01 Serf 25665 | -4/Extension | Reprogrammed and armed K-01 Serf 25670 | -4/Extension | Reprogrammed and armed K-01 Serf 25673 | -4/Extension | Reprogrammed and armed K-01 Serf 25680 | -4/Extension | Reprogrammed and armed K-01 Serf 25686 | -4/Extension | Reprogrammed and armed K-01 Serf 25688 | -4/Extension | Reprogrammed and armed K-01 Serf 25704 | -4/Extension | Lost 7 allies 25731 | -4/Extension | Spotted B-86 Titan 25743 | -4/Extension | Allies destroyed B-86 Titan 25745 | -4/Extension | Spotted B-86 Titan 25765 | -4/Extension | Allies destroyed B-86 Titan 25766 | -4/Extension | Build established: Commander-Sprinter 25795 | -4/Extension | Rescued A7 25877 | -4/Extension | Lost 25 allies 25906 | -4/Extension | Discovered new exit (range 15) 25906 | -4/Extension | Discovered exit to Research (range 15) 25911 | -4/Extension | Identified exit to Cetus 25989 | -4/Extension | Entered Cetus 25989 | -4/Cetus | Accompanied by 15 allies (A7) 25993 | -4/Cetus | Spotted Cetus Guard 25994 | -4/Cetus | Acquired a Cetus Manufacturing Module code from A7 26003 | -4/Cetus | Spotted Cetus Guard 26004 | -4/Cetus | Spotted Cetus Guard 26004 | -4/Cetus | Spotted Cetus Guard 26014 | -4/Cetus | Allies destroyed Cetus Guard 26017 | -4/Cetus | Core integrity fell below 20% 26018 | -4/Cetus | Destroyed Cetus Guard 26024 | -4/Cetus | Allies destroyed Cetus Guard 26027 | -4/Cetus | Destroyed Cetus Guard 26062 | -4/Cetus | Started Cetus Manufacturing Module 26066 | -4/Cetus | Lost 4 allies 26071 | -4/Cetus | Escorted A7 to Cetus Mainframe 26080 | -4/Cetus | Discovered new exit (range 15) 26087 | -4/Cetus | Manufactured an Enhanced Grunt 26112 | -4/Cetus | Manufactured an Enhanced Grunt 26137 | -4/Cetus | Manufactured an Enhanced Grunt 26162 | -4/Cetus | Manufactured an Enhanced Grunt 26169 | -4/Cetus | Spotted Cetus Guard 26187 | -4/Cetus | Manufactured an Enhanced Grunt 26192 | -4/Cetus | Spotted Cetus Guard 26201 | -4/Cetus | Spotted Cetus Guard 26203 | -4/Cetus | Allies destroyed Cetus Guard 26210 | -4/Cetus | Allies destroyed Cetus Guard 26211 | -4/Cetus | Allies destroyed Cetus Guard 26211 | -4/Cetus | Spotted Cetus Guard 26215 | -4/Cetus | Allies destroyed Cetus Guard 26231 | -4/Cetus | Discovered exit to Research (range 15) 26233 | -4/Cetus | Met Revision 17 26240 | -4/Cetus | Lost 7 allies 26246 | -4/Cetus | Identified exit to Archives 26281 | -4/Cetus | Entered Archives 26281 | -4/Archives | Accompanied by 9 allies (A7) 26282 | -4/Archives | Identified exit to Hub_04(d) 26286 | -4/Archives | Received a hacking code to weaken MAIN.C 26590 | -4/Archives | Build established: Hacker-Scout 26657 | -4/Archives | Discovered exit to Research (range 14) 27090 | -4/Archives | Build established: Wizard-Mutant 28098 | -4/Archives | Entered Hub_04(d) 28098 | -4/Hub_04(d) | Accompanied by 5 allies 28288 | -4/Hub_04(d) | Network Hub disabled 28365 | -4/Hub_04(d) | Network Hub disabled 28372 | -4/Hub_04(d) | Build established: Wizard-Sprinter 28373 | -4/Hub_04(d) | Network Hub disabled 28381 | -4/Hub_04(d) | Network Hub disabled 28450 | -4/Hub_04(d) | Entered Research 28450 | -3/Research | Evolved 2 slots: Propulsion x1, Utility x1 28504 | -3/Research | Fabricated IN-MT5's Pitchfork "Insurrection" (x1) 28524 | -3/Research | Reprogrammed and armed K-01 Serf 28536 | -3/Research | Found Fusion Bomb Launcher 28586 | -3/Research | Reprogrammed and armed K-01 Serf 28589 | -3/Research | Reprogrammed and armed K-01 Serf 28610 | -3/Research | Fabricated IN-MT5's Pitchfork "Insurrection"? 28639 | -3/Research | P-80 Master assimilated hostile H-77 Assassin 28650 | -3/Research | Revision forces began assault on 0b10 28691 | -3/Research | Reprogrammed and armed K-01 Serf 28716 | -3/Research | Reprogrammed and armed K-01 Serf 28729 | -3/Research | Destroyed 9 combat bots 28766 | -3/Research | Reprogrammed and armed K-01 Serf 28768 | -3/Research | Reprogrammed and armed K-01 Serf 28773 | -3/Research | Met up with Revision 17++ 28774 | -3/Research | Reprogrammed and armed K-01 Serf 28782 | -3/Research | Lost 7 allies 28914 | -3/Research | Reprogrammed and armed K-01 Serf 28943 | -3/Research | Found Adv. Micro-nuke Launcher 28960 | -3/Research | Reprogrammed and armed K-01 Serf 28975 | -3/Research | Found Exp. EM Disruption Field 28992 | -3/Research | Reprogrammed and armed K-01 Serf 29000 | -3/Research | Reprogrammed and armed K-01 Serf 29018 | -3/Research | Discovered new exit (range 4) 29062 | -3/Research | Identified exit to Armory 29105 | -3/Research | Discovered new exit (range 7) 29106 | -3/Research | Identified exit to Quarantine 29107 | -3/Research | Discovered new exit (range 6) 29108 | -3/Research | Identified exit to Research 29150 | -3/Research | Research terminal network offline 29151 | -3/Research | Reprogrammed and armed K-01 Serf 29153 | -3/Research | Found Mni. Smartbomb Launcher 29160 | -3/Research | Reprogrammed and armed K-01 Serf 29160 | -3/Research | Reprogrammed and armed K-01 Serf 29214 | -3/Research | Spotted B-86 Titan 29248 | -3/Research | Build established: Hacker-Sprinter 29289 | -3/Research | Fabricated IN-MT5's Pitchfork "Insurrection"? 29336 | -3/Research | Repaired Broken Exp. EM Disruption Field? 29436 | -3/Research | Entered Quarantine 29436 | -3/Quarantine | Accompanied by 10 allies 29445 | -3/Quarantine | Reprogrammed and armed K-01 Serf 29482 | -3/Quarantine | Reprogrammed and armed K-01 Serf 29483 | -3/Quarantine | Reprogrammed and armed K-01 Serf 29520 | -3/Quarantine | Reprogrammed and armed K-01 Serf 29523 | -3/Quarantine | Reprogrammed and armed K-01 Serf 29528 | -3/Quarantine | Reprogrammed and armed K-01 Serf 29528 | -3/Quarantine | Reprogrammed and armed K-01 Serf 29537 | -3/Quarantine | Found Alien Reactor 29545 | -3/Quarantine | Reprogrammed and armed K-01 Serf 29546 | -3/Quarantine | Discovered exit to Research (range 15) 29548 | -3/Quarantine | Reprogrammed and armed K-01 Serf 29549 | -3/Quarantine | Reprogrammed and armed K-01 Serf 29549 | -3/Quarantine | Reprogrammed and armed K-01 Serf 29550 | -3/Quarantine | Reprogrammed and armed K-01 Serf 29550 | -3/Quarantine | Reprogrammed and armed K-01 Serf 29559 | -3/Quarantine | Identified Matter Drive 29582 | -3/Quarantine | Reprogrammed and armed K-01 Serf 29583 | -3/Quarantine | Reprogrammed and armed K-01 Serf 29583 | -3/Quarantine | Reprogrammed and armed K-01 Serf 29583 | -3/Quarantine | Reprogrammed and armed K-01 Serf 29584 | -3/Quarantine | Reprogrammed and armed K-01 Serf 29584 | -3/Quarantine | Reprogrammed and armed K-01 Serf 29606 | -3/Quarantine | Reprogrammed and armed K-01 Serf 29607 | -3/Quarantine | Reprogrammed and armed K-01 Serf 29607 | -3/Quarantine | Reprogrammed and armed K-01 Serf 29608 | -3/Quarantine | Learned location of 1 exit from Research 29608 | -3/Quarantine | Reprogrammed and armed K-01 Serf 29608 | -3/Quarantine | Reprogrammed and armed K-01 Serf 29609 | -3/Quarantine | Reprogrammed and armed K-01 Serf 29622 | -3/Quarantine | Unchained authorized (CL-0N3) 29654 | -3/Quarantine | Learned Access emergency access door positions 29691 | -3/Quarantine | Learned Research trap positions 29720 | -3/Quarantine | Learned Research emergency access door positions 29743 | -3/Quarantine | Learned Research stockpile data 29751 | -3/Quarantine | Lost 4 allies 29757 | -3/Quarantine | Learned Testing stockpile data 29783 | -3/Quarantine | Learned 12 Access zone layouts 29802 | -3/Quarantine | U-05 Engineer reconstituted as S7 Guard 29802 | -3/Quarantine | Spotted S7 Guard 29808 | -3/Quarantine | Allies destroyed S7 Guard 29808 | -3/Quarantine | S7 Guard reconstituted as CL-0N3 29817 | -3/Quarantine | Allies destroyed CL-0N3 29818 | -3/Quarantine | Extracted schematics, analyses from CL-0N3's data core 29820 | -3/Quarantine | Found CL-0N3's Metamass Displacer 29821 | -3/Quarantine | Learned 8 Testing zone layouts 29870 | -3/Quarantine | Found Alien Artifact 29981 | -3/Quarantine | Repaired Broken Diametric Drive 30000 | -3/Quarantine | Unchained authorized (DW-4LL) 30018 | -3/Quarantine | Repaired Electron Diverter 30184 | -3/Quarantine | DW-4LL burst out of a wall 30201 | -3/Quarantine | Allies destroyed DW-4LL 30204 | -3/Quarantine | Found DW-4LL's Slamshotty 30328 | -3/Quarantine | Unchained authorized (6S-H0T) 30516 | -3/Quarantine | Allies destroyed 6S-H0T 30525 | -3/Quarantine | Found 6S-H0T's Six Shooter 30531 | -3/Quarantine | Found DW-4LL's Blast Wall 30534 | -3/Quarantine | Found DW-4LL's Griptreads 30538 | -3/Quarantine | Found Exp. Armor Integrity Analyzer 30658 | -3/Quarantine | Botcube activated 30674 | -3/Quarantine | Botcube completed mutation into treaded form, armed with 1 gun, 1 special weapon. 30676 | -3/Quarantine | Found 6S-H0T's SS Cartridge 30711 | -3/Quarantine | Attached CPS modules to *Sub-Riot. 30720 | -3/Quarantine | Cryocooling Duct disabled 30735 | -3/Quarantine | Ambient heat levels rising (+20) 30735 | -3/Quarantine | Non-combat units ordered to evacuate 30789 | -3/Quarantine | P-80 Master assimilated allied K-01 Serf 30797 | -3/Quarantine | P-80 Master assimilated allied K-01 Serf 30800 | -3/Quarantine | Reprogrammed and armed K-01 Serf 30803 | -3/Quarantine | Reprogrammed and armed K-01 Serf 30837 | -3/Quarantine | Found Alien Artifact 30837 | -3/Quarantine | Identified Dimensional Node Initializer 30837 | -3/Quarantine | Initialized slip node 30841 | -3/Quarantine | Found Dimensional Node Initializer 30936 | -3/Quarantine | First assault squad dispatched 31015 | -3/Quarantine | Spotted Fortress 31044 | -3/Quarantine | Destroyed Fortress 31064 | -3/Quarantine | Discovered new exit (range 6) 31064 | -3/Quarantine | Discovered new exit (range 6) 31065 | -3/Quarantine | Identified exit to Protoforge 31066 | -3/Quarantine | Identified exit to Section 7 31138 | -3/Quarantine | P-80 Master assimilated allied K-01 Serf 31143 | -3/Quarantine | Reprogrammed and armed K-01 Serf 31144 | -3/Quarantine | Build established: Hacker-Ninja 31145 | -3/Quarantine | Botcube activated 31159 | -3/Quarantine | Botcube completed mutation into treaded form, armed with 1 gun. 31222 | -3/Quarantine | Entered Protoforge 31222 | -3/Protoforge | Accompanied by 24 allies 31225 | -3/Protoforge | Adv. Hacking Suite fried by hacking feedback 31235 | -3/Protoforge | Reprogrammed and armed K-01 Serf 31276 | -3/Protoforge | Superfortress began startup sequence 31300 | -3/Protoforge | Reprogrammed and armed K-01 Serf 31313 | -3/Protoforge | Reprogrammed and armed K-01 Serf 31362 | -3/Protoforge | Lost 5 allies 31377 | -3/Protoforge | Reprogrammed and armed K-01 Serf 31418 | -3/Protoforge | Spotted Hotshot 31427 | -3/Protoforge | Spotted Hotshot 31427 | -3/Protoforge | Spotted Hotshot 31427 | -3/Protoforge | Spotted Hotshot 31427 | -3/Protoforge | Discovered exit to Research (range 15) 31428 | -3/Protoforge | Spotted Hotshot 31447 | -3/Protoforge | Allies destroyed Hotshot 31453 | -3/Protoforge | Allies destroyed Hotshot 31461 | -3/Protoforge | Allies destroyed Hotshot 31462 | -3/Protoforge | Allies destroyed Hotshot 31465 | -3/Protoforge | Allies destroyed Hotshot 31472 | -3/Protoforge | First assault squad dispatched 31482 | -3/Protoforge | Initialized slip node 31526 | -3/Protoforge | Build established: Ninja 31567 | -3/Protoforge | Spotted Overlord 31616 | -3/Protoforge | Allies destroyed Overlord 31639 | -3/Protoforge | Lost 14 allies 31867 | -3/Protoforge | Found Cep. Core Shell 31903 | -3/Protoforge | Reprogrammed and armed K-01 Serf 31909 | -3/Protoforge | Reprogrammed and armed K-01 Serf 31923 | -3/Protoforge | Build established: Scavenger-Ninja 31936 | -3/Protoforge | P-80 Master assimilated allied K-01 Serf 31938 | -3/Protoforge | P-80 Master assimilated allied K-01 Serf 31943 | -3/Protoforge | Reprogrammed and armed K-01 Serf 31947 | -3/Protoforge | Reprogrammed and armed K-01 Serf 31954 | -3/Protoforge | P-80 Master assimilated allied K-01 Serf 31956 | -3/Protoforge | P-80 Master assimilated allied K-01 Serf 31964 | -3/Protoforge | Reprogrammed and armed K-01 Serf 31964 | -3/Protoforge | Reprogrammed and armed K-01 Serf 31967 | -3/Protoforge | Found Botcube 31971 | -3/Protoforge | Reprogrammed and armed K-01 Serf 31975 | -3/Protoforge | Found Exp. System Purifier 31978 | -3/Protoforge | P-80 Master assimilated allied K-01 Serf 31987 | -3/Protoforge | Reprogrammed and armed K-01 Serf 32005 | -3/Protoforge | Botcube activated 32026 | -3/Protoforge | Found Cep. NT7 Matterbank 32029 | -3/Protoforge | Found Cep. XC Strikerail 32082 | -3/Protoforge | Forge Plexus network access discovered 32092 | -3/Protoforge | Lost 3 parts (2p1n) 32101 | -3/Protoforge | Found Exp. Force Booster 32104 | -3/Protoforge | Found Cep. Weapon Articulator 32117 | -3/Protoforge | Found Crosscalibrator 32121 | -3/Protoforge | Spotted Immortal 32121 | -3/Protoforge | Spotted Immortal 32153 | -3/Protoforge | Found Cep. Hypertargeting System 32387 | -3/Protoforge | Destroyed Immortal 32406 | -3/Protoforge | Destroyed Immortal 32441 | -3/Protoforge | Found Corrupted Exp. Jetlance 32448 | -3/Protoforge | Spotted Decapitator 32448 | -3/Protoforge | Spotted Decapitator 32448 | -3/Protoforge | Spotted Decapitator 32448 | -3/Protoforge | Spotted Decapitator 32450 | -3/Protoforge | Found Cep. Core Shell 32454 | -3/Protoforge | Found Corrupted Cep. Antimissile System 32491 | -3/Protoforge | Found Cep. Zero-point Core 32498 | -3/Protoforge | Found Faulty Cep. Zero-point Core 32507 | -3/Protoforge | Found Faulty Cep. Zero-point Core 32596 | -3/Protoforge | Destroyed Decapitator 32599 | -3/Protoforge | Destroyed Decapitator 32599 | -3/Protoforge | Destroyed Decapitator 32606 | -3/Protoforge | Destroyed Decapitator 32627 | -3/Protoforge | Destroyed 7 combat bots 32694 | -3/Protoforge | Spotted V750-a 32697 | -3/Protoforge | Destroyed V750-a 32709 | -3/Protoforge | Found Exp. Target Analyzer 32711 | -3/Protoforge | Found Exp. EM Disruption Field 32726 | -3/Protoforge | Lost 4 parts (1p3u) 32739 | -3/Protoforge | Found Cep. Smart ZDS 32741 | -3/Protoforge | Found Cep. Rapid Grenade Launcher 32794 | -3/Protoforge | Found Cep. Core Shell 32820 | -3/Protoforge | Destroyed Decapitator 32820 | -3/Protoforge | Destroyed Decapitator 32820 | -3/Protoforge | Destroyed Decapitator 32824 | -3/Protoforge | Spotted V761-y 32824 | -3/Protoforge | Spotted V289-y 32848 | -3/Protoforge | Spotted V101-z 32848 | -3/Protoforge | Spotted V408-l 32848 | -3/Protoforge | Spotted V988-i 32848 | -3/Protoforge | Spotted V176-a 32897 | -3/Protoforge | Destroyed Decapitator 32898 | -3/Protoforge | Spotted Decapitator 32902 | -3/Protoforge | Destroyed Decapitator 32903 | -3/Protoforge | Spotted Decapitator 32907 | -3/Protoforge | Destroyed Decapitator 32926 | -3/Protoforge | Found Exp. Jetlance 32929 | -3/Protoforge | Found Cep. Deflector Sword 32934 | -3/Protoforge | Found Cep. Lightning Penetrator 32962 | -3/Protoforge | Build established: Scavenger-Scout 33011 | -3/Protoforge | Spotted V153-o 33012 | -3/Protoforge | Spotted V823-e 33040 | -3/Protoforge | Found Cep. Helical Railcannon 33061 | -3/Protoforge | Destroyed V823-e 33074 | -3/Protoforge | Destroyed V153-o 33101 | -3/Protoforge | Lost 12 parts (2p4n3u3w) 33133 | -3/Protoforge | Destroyed V653-p 33143 | -3/Protoforge | Found Cep. Variable Chargecaster 33236 | -3/Protoforge | Found Cep. Helical Railcannon 33275 | -3/Protoforge | Found Exp. Terror Saw 33331 | -3/Protoforge | Found Cep. Core Shell 33334 | -3/Protoforge | Found Unknown Protection 33334 | -3/Protoforge | Identified Adv. Powered Armor 33347 | -3/Protoforge | Found Cep. Miniperforator 33404 | -3/Protoforge | Found Faulty Cep. Heavy Railcannon 33406 | -3/Protoforge | Found Faulty Cep. Heavy Railcannon 33541 | -3/Protoforge | Found Faulty Cep. Plasma Driver 33546 | -3/Protoforge | Found Faulty Cep. Plasma Driver 33717 | -3/Protoforge | Found Cep. Biometal Exoskeleton 33798 | -3/Protoforge | System corruption reached 10% 33800 | -3/Protoforge | Destroyed V761-y 33804 | -3/Protoforge | Found Prototype Device 33804 | -3/Protoforge | Identified Exp. Actuator Array 33806 | -3/Protoforge | Found Unknown Device 33806 | -3/Protoforge | Identified Adv. Force Booster 33812 | -3/Protoforge | Found Cep. Melee Reflex Suite 33828 | -3/Protoforge | Lost 3 parts (3u) 33854 | -3/Protoforge | Found Cep. Gyrokinetic System 33860 | -3/Protoforge | Found Cep. Gyrokinetic System 33917 | -3/Protoforge | Found Faulty Cep. Gyrokinetic System 33919 | -3/Protoforge | Found Cep. Combat Aerolev Unit 34003 | -3/Protoforge | System corruption reached 30% 34033 | -3/Protoforge | Lost 4 parts (1p1n2u) 34050 | -3/Protoforge | Found Cep. Gyrokinetic System 34054 | -3/Protoforge | Found Faulty Cep. Combat Aerolev Unit 34149 | -3/Protoforge | Destroyed 9 combat bots 34154 | -3/Protoforge | Found Cep. Core Shell 34205 | -3/Protoforge | Spotted Immortal 34205 | -3/Protoforge | Spotted Immortal 34231 | -3/Protoforge | Destroyed Immortal 34235 | -3/Protoforge | Destroyed Immortal 34253 | -3/Protoforge | Spotted V032-i 34257 | -3/Protoforge | Destroyed V032-i 34263 | -3/Protoforge | Found Prototype Device 34263 | -3/Protoforge | Identified Exp. Shock Absorption System 34266 | -3/Protoforge | Found Cep. Combat Aerolev Unit 34269 | -3/Protoforge | Found Cep. Core Shell 34272 | -3/Protoforge | Found Cep. RG22 Armor 34276 | -3/Protoforge | Found Cep. RG22 Armor 34381 | -3/Protoforge | Found Cep. Core Shell 34413 | -3/Protoforge | Build established: Scavenger-Mutant 34447 | -3/Protoforge | Found Cep. Chromion Battery 34460 | -3/Protoforge | Found Cep. Antigrav Storage Unit 34462 | -3/Protoforge | Found Cep. Chromion Battery 34464 | -3/Protoforge | Found Cep. NT7 Matterbank 34469 | -3/Protoforge | Found Cep. Matter Streamer 34471 | -3/Protoforge | Found Cep. NT7 Matterbank 34511 | -3/Protoforge | Spotted AP7-3 34511 | -3/Protoforge | Spotted AP7-3 34546 | -3/Protoforge | Destroyed AP7-3 34570 | -3/Protoforge | Destroyed AP7-3 34579 | -3/Protoforge | Lost 4 parts (1n2u1w) 34595 | -3/Protoforge | Identified Subatomic Replicator 34595 | -3/Protoforge | Used Subatomic Replicator to replicate Faulty Cep. Impact Drone Bay 34596 | -3/Protoforge | Found Faulty Cep. Impact Drone Bay 34600 | -3/Protoforge | Found Faulty Cep. Thermoelectric Network 34601 | -3/Protoforge | Found Faulty Cep. Thermoelectric Network 34602 | -3/Protoforge | Found Cep. Cloak Mesh 34684 | -3/Protoforge | Core integrity fell below 50% 34715 | -3/Protoforge | Additional patrols dispatched to research labs 34726 | -3/Protoforge | Lost 5 parts (1p2n1u1w) 34731 | -3/Protoforge | Found Transdimensional Reconstructor 34740 | -3/Protoforge | Found Cep. Nanofilaments [Tensile] 34740 | -3/Protoforge | Installed Cep. Nanofilaments [Tensile], 3 resistances modified: KI +20%, TH -10%, I +20% 34747 | -3/Protoforge | Found Cep. Navigation Harness 34799 | -3/Protoforge | Found Cep. Combat Aerolev Unit 34802 | -3/Protoforge | Found Cep. Projectile Intercept Suite 34805 | -3/Protoforge | Found Cep. Core Shell 34864 | -3/Protoforge | Found Cep. Variable Chargecaster 34870 | -3/Protoforge | Found Cep. Lightning Penetrator 34920 | -3/Protoforge | Found Cep. Network Penetrator 34922 | -3/Protoforge | Spotted V137-p 34970 | -3/Protoforge | Found Cep. Fieldthrust Drive 35013 | -3/Protoforge | Found Cep. Fieldthrust Drive 35035 | -3/Protoforge | Found Cep. Fieldthrust Drive 35077 | -3/Protoforge | Found Cep. Weapon Articulator 35079 | -3/Protoforge | Found Faulty Femtoactuators 35107 | -3/Protoforge | Found Cep. Tiamat Rocket Array 35117 | -3/Protoforge | Found Faulty Cep. Zero-point Core 35271 | -3/Protoforge | Build established: Sprinter 35318 | -3/Protoforge | Warped through subspace to slip node 35324 | -3/Protoforge | Entered Research 35324 | -2/Research | Evolved 2 slots: Propulsion x1, Utility x1 35325 | -2/Research | Identified exit to Access 35326 | -2/Research | Loaded intel: 65 trap records 35354 | -2/Research | Identified exit to Testing 35359 | -2/Research | Found Gamma Bomb Array 35402 | -2/Research | Spotted B-90 Cyclops 35421 | -2/Research | Found Exp. Signal Interpreter 35531 | -2/Research | Unchained authorized (QV-33N) 35643 | -2/Research | Fabricated CPS Tube (x1) 35731 | -2/Research | Build established: Hacker-Scout 35791 | -2/Research | Spotted B-90 Cyclops 35824 | -2/Research | First assault squad dispatched 35850 | -2/Research | Entered Testing 35853 | -2/Testing | Found Exp. Cloaking Device 35856 | -2/Testing | Found Exp. Cloaking Device 35882 | -2/Testing | Found Prototype Energy Cannon 35882 | -2/Testing | Identified Imp. Potential Cannon 35902 | -2/Testing | Found Prototype Device 35902 | -2/Testing | Identified AEGIS Remote Shield 35919 | -2/Testing | Found Prototype Hackware 35919 | -2/Testing | Identified Ghost Barrier 35978 | -2/Testing | Fabricated IN-MT5's Pitchfork "Insurrection"? 36055 | -2/Testing | Found Exp. Transmission Jammer 36065 | -2/Testing | Attached CPS modules to PL-AZ74S42H4P. 36114 | -2/Testing | Destroyed PL-AZ74S42H4P 36118 | -2/Testing | Found Prototype Processor 36118 | -2/Testing | Identified Exp. Core Analyzer 36126 | -2/Testing | Fabricated IN-MT5's Pitchfork "Insurrection"? 36146 | -2/Testing | Spotted Striker 36146 | -2/Testing | Spotted Striker 36183 | -2/Testing | Build established: Wizard-Ninja 36214 | -2/Testing | Found Prototype Ballistic Cannon 36214 | -2/Testing | Identified Omega Cannon 36268 | -2/Testing | Reprogrammed and armed K-01 Serf 36268 | -2/Testing | Reprogrammed and armed K-01 Serf 36270 | -2/Testing | Reprogrammed and armed K-01 Serf 36271 | -2/Testing | Reprogrammed and armed K-01 Serf 36359 | -2/Testing | Reprogrammed and armed K-01 Serf 36360 | -2/Testing | Reprogrammed and armed K-01 Serf 36372 | -2/Testing | Found Prototype Device 36372 | -2/Testing | Identified 2N-1CE's Frost Array 36440 | -2/Testing | P-80 Master assimilated allied K-01 Serf 36447 | -2/Testing | Entered Access 36447 | -1/Access | Evolved 2 slots: Propulsion x1, Utility x1 36456 | -1/Access | Identified exit to Command 36488 | -1/Access | Spotted B-99 Colossus 36528 | -1/Access | Fabricated CPS Tube (x1) 36584 | -1/Access | Reprogrammed and armed K-01 Serf 36643 | -1/Access | Repaired Lrn. Sensor Array? 36663 | -1/Access | Found Gamma Bomb Array 36703 | -1/Access | Spotted B-99 Colossus 36819 | -1/Access | Spotted B-99 Colossus 36920 | -1/Access | Reprogrammed and armed K-01 Serf 36977 | -1/Access | Identified exit to Surface 37020 | -1/Access | Reprogrammed and armed K-01 Serf 37056 | -1/Access | Fabricated Femtoactuators (x1) 37067 | -1/Access | Loaded intel: 46 interactive machine locations 37098 | -1/Access | Loaded intel: 90 trap records 37154 | -1/Access | Reprogrammed and armed K-01 Serf 37155 | -1/Access | Reprogrammed and armed K-01 Serf 37156 | -1/Access | Reprogrammed and armed K-01 Serf 37157 | -1/Access | Reprogrammed and armed K-01 Serf 37157 | -1/Access | Reprogrammed and armed K-01 Serf 37159 | -1/Access | Reprogrammed and armed K-01 Serf 37184 | -1/Access | Learned Access emergency access door positions 37522 | -1/Access | Reprogrammed and armed K-01 Serf 37540 | -1/Access | Build established: Hacker-Skirmisher 37548 | -1/Access | Reprogrammed and armed K-01 Serf 37588 | -1/Access | Reprogrammed and armed K-01 Serf 37634 | -1/Access | Reprogrammed and armed K-01 Serf 37637 | -1/Access | Reprogrammed and armed K-01 Serf 37766 | -1/Access | Reprogrammed and armed K-01 Serf 37843 | -1/Access | Reprogrammed and armed K-01 Serf 37871 | -1/Access | Reprogrammed and armed K-01 Serf 37872 | -1/Access | Reprogrammed and armed K-01 Serf 37929 | -1/Access | Reprogrammed and armed K-01 Serf 37958 | -1/Access | Reprogrammed and armed K-01 Serf 37964 | -1/Access | Unchained authorized (QV-33N) 38025 | -1/Access | Reprogrammed and armed K-01 Serf 38052 | -1/Access | Reprogrammed and armed K-01 Serf 38087 | -1/Access | Reprogrammed and armed K-01 Serf 38088 | -1/Access | Reprogrammed and armed K-01 Serf 38093 | -1/Access | Maximum security lockdown engaged 38094 | -1/Access | Attached CPS modules to QV-33N. 38134 | -1/Access | Allies destroyed QV-33N 38135 | -1/Access | Found Prototype Device 38135 | -1/Access | Identified Zeronet Interface 38138 | -1/Access | Found Prototype Device 38138 | -1/Access | Identified QV-33N's Drone Shield 38148 | -1/Access | Found Prototype Device 38149 | -1/Access | Found Prototype Device 38149 | -1/Access | Identified Exp. Phase Shifter 38154 | -1/Access | Found Prototype Hover Unit 38154 | -1/Access | Identified Hoverbase 38155 | -1/Access | Attached Hoverbase, gained temporary slot: Utility 38159 | -1/Access | Reprogrammed and armed K-01 Serf 38169 | -1/Access | Reprogrammed and armed K-01 Serf 38173 | -1/Access | Reprogrammed and armed K-01 Serf 38250 | -1/Access | Reprogrammed and armed K-01 Serf 38360 | -1/Access | Entered Command 38360 | -1/Command | Accompanied by 10 allies 38385 | -1/Command | High security lockdown imminent 38390 | -1/Command | Lost 6 allies 38398 | -1/Command | Reprogrammed and armed K-01 Serf 38406 | -1/Command | Spotted B-99 Colossus 38416 | -1/Command | Spotted Combat Programmer 38422 | -1/Command | Reprogrammed and armed K-01 Serf 38428 | -1/Command | Spotted Combat Programmer 38430 | -1/Command | Disengaged cave seal 38432 | -1/Command | Reprogrammed and armed K-01 Serf 38437 | -1/Command | Destroyed Combat Programmer 38438 | -1/Command | Destroyed Combat Programmer 38452 | -1/Command | Build established: Hacker-Ninja 38452 | -1/Command | Spotted M Guard 38455 | -1/Command | Spotted M Guard 38465 | -1/Command | High security lockdown engaged 38474 | -1/Command | Destroyed M Guard 38486 | -1/Command | Destroyed M Guard 38486 | -1/Command | All MAIN.C guards destroyed 38488 | -1/Command | Found Corrupted Prototype Reactor 38507 | -1/Command | Lost 3 allies 38541 | -1/Command | Met MAIN.C 38566 | -1/Command | Allies destroyed MAIN.C Shell 38567 | -1/Command | MAIN.C activated Command garrisons 38597 | -1/Command | 0b10 Conduit disabled 38606 | -1/Command | Destroyed MAIN.C 38607 | -1/Command | Identified Zero-point Reactor 38607 | -1/Command | Discovered exit to Surface (range 40) 38607 | -1/Command | Discovered exit to Surface (range 87) 38607 | -1/Command | Extracted map data and part IDs from MAIN.C's data core 38612 | -1/Command | Found Exp. Powered Armor 38659 | -1/Command | Identified QV-33N's Launch Deck 38665 | -1/Command | QV-33N's Launch Deck released Kinetic Drone (x1) 38670 | -1/Command | QV-33N's Launch Deck released EX Drone (x1) 38675 | -1/Command | QV-33N's Launch Deck released Kinetic Drone (x1) 38680 | -1/Command | QV-33N's Launch Deck released Antisys Drone (x1) 38685 | -1/Command | QV-33N's Launch Deck released Thermal Drone (x1) 38690 | -1/Command | QV-33N's Launch Deck released Antisys Drone (x1) 38695 | -1/Command | QV-33N's Launch Deck released Antisys Drone (x1) 38700 | -1/Command | QV-33N's Launch Deck released EX Drone (x1) 38705 | -1/Command | QV-33N's Launch Deck released Kinetic Drone (x1) 38710 | -1/Command | QV-33N's Launch Deck released Kinetic Drone (x1) 38715 | -1/Command | QV-33N's Launch Deck released Thermal Drone (x1) 38720 | -1/Command | QV-33N's Launch Deck released Stasis Drone (x1) 38725 | -1/Command | QV-33N's Launch Deck released Antisys Drone (x1) 38730 | -1/Command | QV-33N's Launch Deck released Antisys Drone (x1) 38735 | -1/Command | QV-33N's Launch Deck released Antisys Drone (x1) 38740 | -1/Command | QV-33N's Launch Deck released Stasis Drone (x1) 38745 | -1/Command | QV-33N's Launch Deck released Antisys Drone (x1) 38750 | -1/Command | QV-33N's Launch Deck released Kinetic Drone (x1) 38755 | -1/Command | QV-33N's Launch Deck released EX Drone (x1) 38760 | -1/Command | QV-33N's Launch Deck released Stasis Drone (x1) 38765 | -1/Command | QV-33N's Launch Deck released Kinetic Drone (x1) 38770 | -1/Command | QV-33N's Launch Deck released Thermal Drone (x1) 38775 | -1/Command | QV-33N's Launch Deck released Antisys Drone (x1) 38780 | -1/Command | QV-33N's Launch Deck released Stasis Drone (x1) 38785 | -1/Command | QV-33N's Launch Deck released Kinetic Drone (x1) 38790 | -1/Command | QV-33N's Launch Deck released Thermal Drone (x1) 38795 | -1/Command | QV-33N's Launch Deck released Antisys Drone (x1) 38800 | -1/Command | QV-33N's Launch Deck released Kinetic Drone (x1) 38805 | -1/Command | QV-33N's Launch Deck released Thermal Drone (x1) 38827 | -1/Command | QV-33N's Launch Deck released Thermal Drone (x1) 38832 | -1/Command | QV-33N's Launch Deck released Antisys Drone (x1) 38837 | -1/Command | QV-33N's Launch Deck released EX Drone (x1) 38842 | -1/Command | QV-33N's Launch Deck released Thermal Drone (x1) 38847 | -1/Command | QV-33N's Launch Deck released Stasis Drone (x1) 38852 | -1/Command | QV-33N's Launch Deck released EX Drone (x1) 38857 | -1/Command | QV-33N's Launch Deck released Thermal Drone (x1) 38862 | -1/Command | QV-33N's Launch Deck released Kinetic Drone (x1) 38867 | -1/Command | QV-33N's Launch Deck released Antisys Drone (x1) 38872 | -1/Command | QV-33N's Launch Deck released Kinetic Drone (x1) 38877 | -1/Command | QV-33N's Launch Deck released Kinetic Drone (x1) 38882 | -1/Command | QV-33N's Launch Deck released Thermal Drone (x1) 38887 | -1/Command | QV-33N's Launch Deck released Thermal Drone (x1) 38892 | -1/Command | QV-33N's Launch Deck released Kinetic Drone (x1) 38897 | -1/Command | QV-33N's Launch Deck released Kinetic Drone (x1) 38902 | -1/Command | QV-33N's Launch Deck released EX Drone (x1) 38907 | -1/Command | QV-33N's Launch Deck released Antisys Drone (x1) 38912 | -1/Command | QV-33N's Launch Deck released Kinetic Drone (x1) 38913 | -1/Command | Allies destroyed B-99 Colossus 38917 | -1/Command | QV-33N's Launch Deck released Thermal Drone (x1) 38920 | -1/Command | Lost 4 allies 38922 | -1/Command | QV-33N's Launch Deck released Kinetic Drone (x1) 38927 | -1/Command | QV-33N's Launch Deck released Stasis Drone (x1) 38932 | -1/Command | QV-33N's Launch Deck released Kinetic Drone (x1) 38937 | -1/Command | QV-33N's Launch Deck released Antisys Drone (x1) 38942 | -1/Command | QV-33N's Launch Deck released Kinetic Drone (x1) 38947 | -1/Command | QV-33N's Launch Deck released Antisys Drone (x1) 38952 | -1/Command | Build established: Scavenger-Mutant 38952 | -1/Command | QV-33N's Launch Deck released Antisys Drone (x1) 38952 | -1/Command | Allies destroyed Striker 38957 | -1/Command | QV-33N's Launch Deck released Kinetic Drone (x1) 38962 | -1/Command | QV-33N's Launch Deck released EX Drone (x1) 38967 | -1/Command | QV-33N's Launch Deck released Antisys Drone (x1) 38972 | -1/Command | QV-33N's Launch Deck released EX Drone (x1) 38977 | -1/Command | QV-33N's Launch Deck released Stasis Drone (x1) 38982 | -1/Command | QV-33N's Launch Deck released Thermal Drone (x1) 38987 | -1/Command | QV-33N's Launch Deck released Kinetic Drone (x1) 38992 | -1/Command | QV-33N's Launch Deck released Thermal Drone (x1) 38996 | -1/Command | Allies destroyed Alpha 7 38997 | -1/Command | QV-33N's Launch Deck released Antisys Drone (x1) 39002 | -1/Command | QV-33N's Launch Deck released Stasis Drone (x1) 39007 | -1/Command | QV-33N's Launch Deck released Thermal Drone (x1) 39012 | -1/Command | QV-33N's Launch Deck released Kinetic Drone (x1) 39017 | -1/Command | QV-33N's Launch Deck released Stasis Drone (x1) 39022 | -1/Command | QV-33N's Launch Deck released Kinetic Drone (x1) 39027 | -1/Command | QV-33N's Launch Deck released Kinetic Drone (x1) 39032 | -1/Command | QV-33N's Launch Deck released Kinetic Drone (x1) 39037 | -1/Command | QV-33N's Launch Deck released Stasis Drone (x1) 39042 | -1/Command | QV-33N's Launch Deck released Thermal Drone (x1) 39047 | -1/Command | QV-33N's Launch Deck released Kinetic Drone (x1) 39052 | -1/Command | QV-33N's Launch Deck released Stasis Drone (x1) 39057 | -1/Command | QV-33N's Launch Deck released Antisys Drone (x1) 39062 | -1/Command | QV-33N's Launch Deck released Kinetic Drone (x1) 39067 | -1/Command | QV-33N's Launch Deck released Thermal Drone (x1) 39072 | -1/Command | QV-33N's Launch Deck released Thermal Drone (x1) 39077 | -1/Command | QV-33N's Launch Deck released Kinetic Drone (x1) 39082 | -1/Command | QV-33N's Launch Deck released EX Drone (x1) 39087 | -1/Command | QV-33N's Launch Deck released Kinetic Drone (x1) 39092 | -1/Command | QV-33N's Launch Deck released Thermal Drone (x1) 39097 | -1/Command | QV-33N's Launch Deck released Antisys Drone (x1) 39102 | -1/Command | QV-33N's Launch Deck released Kinetic Drone (x1) 39107 | -1/Command | QV-33N's Launch Deck released Thermal Drone (x1) 39112 | -1/Command | QV-33N's Launch Deck released Kinetic Drone (x1) 39117 | -1/Command | QV-33N's Launch Deck released Thermal Drone (x1) 39122 | -1/Command | QV-33N's Launch Deck released EX Drone (x1) 39127 | -1/Command | QV-33N's Launch Deck released Antisys Drone (x1) 39132 | -1/Command | QV-33N's Launch Deck released Kinetic Drone (x1) 39137 | -1/Command | QV-33N's Launch Deck released Antisys Drone (x1) 39142 | -1/Command | QV-33N's Launch Deck released Kinetic Drone (x1) 39147 | -1/Command | QV-33N's Launch Deck released Kinetic Drone (x1) 39152 | -1/Command | QV-33N's Launch Deck released Kinetic Drone (x1) 39157 | -1/Command | QV-33N's Launch Deck released Thermal Drone (x1) 39162 | -1/Command | QV-33N's Launch Deck released EX Drone (x1) 39167 | -1/Command | QV-33N's Launch Deck released Kinetic Drone (x1) 39172 | -1/Command | QV-33N's Launch Deck released Kinetic Drone (x1) 39177 | -1/Command | QV-33N's Launch Deck released Kinetic Drone (x1) 39182 | -1/Command | QV-33N's Launch Deck released Thermal Drone (x1) 39187 | -1/Command | QV-33N's Launch Deck released Thermal Drone (x1) 39192 | -1/Command | QV-33N's Launch Deck released Antisys Drone (x1) 39197 | -1/Command | QV-33N's Launch Deck released Antisys Drone (x1) 39202 | -1/Command | QV-33N's Launch Deck released Kinetic Drone (x1) 39207 | -1/Command | QV-33N's Launch Deck released Thermal Drone (x1) 39212 | -1/Command | QV-33N's Launch Deck released Antisys Drone (x1) 39217 | -1/Command | QV-33N's Launch Deck released Kinetic Drone (x1) 39222 | -1/Command | QV-33N's Launch Deck released Stasis Drone (x1) 39227 | -1/Command | QV-33N's Launch Deck released Kinetic Drone (x1) 39232 | -1/Command | QV-33N's Launch Deck released Kinetic Drone (x1) 39237 | -1/Command | QV-33N's Launch Deck released Antisys Drone (x1) 39242 | -1/Command | QV-33N's Launch Deck released Kinetic Drone (x1) 39247 | -1/Command | QV-33N's Launch Deck released Kinetic Drone (x1) 39252 | -1/Command | QV-33N's Launch Deck released Kinetic Drone (x1) 39257 | -1/Command | QV-33N's Launch Deck released Thermal Drone (x1) 39262 | -1/Command | QV-33N's Launch Deck released Kinetic Drone (x1) 39267 | -1/Command | QV-33N's Launch Deck released Thermal Drone (x1) 39272 | -1/Command | QV-33N's Launch Deck released Kinetic Drone (x1) 39277 | -1/Command | QV-33N's Launch Deck released Antisys Drone (x1) 39293 | -1/Command | QV-33N's Launch Deck released Stasis Drone (x1) 39298 | -1/Command | QV-33N's Launch Deck released Kinetic Drone (x1) 39303 | -1/Command | QV-33N's Launch Deck released Kinetic Drone (x1) 39308 | -1/Command | QV-33N's Launch Deck released Kinetic Drone (x1) 39313 | -1/Command | QV-33N's Launch Deck released Thermal Drone (x1) 39318 | -1/Command | QV-33N's Launch Deck released Thermal Drone (x1) 39323 | -1/Command | QV-33N's Launch Deck released Kinetic Drone (x1) 39328 | -1/Command | QV-33N's Launch Deck released Kinetic Drone (x1) 39333 | -1/Command | QV-33N's Launch Deck released Thermal Drone (x1) 39338 | -1/Command | QV-33N's Launch Deck released Kinetic Drone (x1) 39343 | -1/Command | QV-33N's Launch Deck released EX Drone (x1) 39348 | -1/Command | QV-33N's Launch Deck released Antisys Drone (x1) 39353 | -1/Command | QV-33N's Launch Deck released Thermal Drone (x1) 39358 | -1/Command | QV-33N's Launch Deck released Kinetic Drone (x1) 39363 | -1/Command | QV-33N's Launch Deck released Kinetic Drone (x1) 39368 | -1/Command | QV-33N's Launch Deck released Antisys Drone (x1) 39373 | -1/Command | QV-33N's Launch Deck released Stasis Drone (x1) 39378 | -1/Command | QV-33N's Launch Deck released Stasis Drone (x1) 39383 | -1/Command | QV-33N's Launch Deck released Antisys Drone (x1) 39388 | -1/Command | QV-33N's Launch Deck released Thermal Drone (x1) 39393 | -1/Command | QV-33N's Launch Deck released Antisys Drone (x1) 39398 | -1/Command | QV-33N's Launch Deck released Antisys Drone (x1) 39403 | -1/Command | QV-33N's Launch Deck released Kinetic Drone (x1) 39408 | -1/Command | QV-33N's Launch Deck released Kinetic Drone (x1) 39413 | -1/Command | QV-33N's Launch Deck released Kinetic Drone (x1) 39418 | -1/Command | QV-33N's Launch Deck released Kinetic Drone (x1) 39423 | -1/Command | QV-33N's Launch Deck released Kinetic Drone (x1) 39428 | -1/Command | QV-33N's Launch Deck released Thermal Drone (x1) 39433 | -1/Command | QV-33N's Launch Deck released Kinetic Drone (x1) 39438 | -1/Command | QV-33N's Launch Deck released EX Drone (x1) 39443 | -1/Command | QV-33N's Launch Deck released Antisys Drone (x1) 39448 | -1/Command | QV-33N's Launch Deck released Thermal Drone (x1) 39453 | -1/Command | QV-33N's Launch Deck released EX Drone (x1) 39458 | -1/Command | QV-33N's Launch Deck released Kinetic Drone (x1) 39463 | -1/Command | QV-33N's Launch Deck released Kinetic Drone (x1) 39468 | -1/Command | QV-33N's Launch Deck released Kinetic Drone (x1) 39473 | -1/Command | QV-33N's Launch Deck released Antisys Drone (x1) 39478 | -1/Command | QV-33N's Launch Deck released Thermal Drone (x1) 39483 | -1/Command | QV-33N's Launch Deck released EX Drone (x1) 39488 | -1/Command | QV-33N's Launch Deck released Thermal Drone (x1) 39493 | -1/Command | QV-33N's Launch Deck released Kinetic Drone (x1) 39498 | -1/Command | QV-33N's Launch Deck released Stasis Drone (x1) 39503 | -1/Command | QV-33N's Launch Deck released EX Drone (x1) 39508 | -1/Command | QV-33N's Launch Deck released Kinetic Drone (x1) 39513 | -1/Command | QV-33N's Launch Deck released Kinetic Drone (x1) 39518 | -1/Command | QV-33N's Launch Deck released Thermal Drone (x1) 39523 | -1/Command | QV-33N's Launch Deck released Kinetic Drone (x1) 39558 | -1/Command | QV-33N's Launch Deck released Antisys Drone (x1) 39563 | -1/Command | QV-33N's Launch Deck released Thermal Drone (x1) 39568 | -1/Command | QV-33N's Launch Deck released Kinetic Drone (x1) 39573 | -1/Command | QV-33N's Launch Deck released Antisys Drone (x1) 39578 | -1/Command | QV-33N's Launch Deck released Kinetic Drone (x1) 39583 | -1/Command | QV-33N's Launch Deck released Stasis Drone (x1) 39588 | -1/Command | QV-33N's Launch Deck released Antisys Drone (x1) 39593 | -1/Command | QV-33N's Launch Deck released Thermal Drone (x1) 39598 | -1/Command | QV-33N's Launch Deck released Kinetic Drone (x1) 39603 | -1/Command | QV-33N's Launch Deck released Thermal Drone (x1) 39608 | -1/Command | QV-33N's Launch Deck released Thermal Drone (x1) 39613 | -1/Command | QV-33N's Launch Deck released Thermal Drone (x1) 39618 | -1/Command | QV-33N's Launch Deck released Antisys Drone (x1) 39623 | -1/Command | QV-33N's Launch Deck released Antisys Drone (x1) 39628 | -1/Command | QV-33N's Launch Deck released Kinetic Drone (x1) 39633 | -1/Command | QV-33N's Launch Deck released Kinetic Drone (x1) 39863 | -1/Command | QV-33N's Launch Deck released Thermal Drone (x1) 39868 | -1/Command | QV-33N's Launch Deck released Kinetic Drone (x1) 39873 | -1/Command | QV-33N's Launch Deck released Antisys Drone (x1) 39878 | -1/Command | QV-33N's Launch Deck released Thermal Drone (x1) 39883 | -1/Command | QV-33N's Launch Deck released Stasis Drone (x1) 39888 | -1/Command | QV-33N's Launch Deck released Thermal Drone (x1) 39893 | -1/Command | QV-33N's Launch Deck released EX Drone (x1) 39898 | -1/Command | QV-33N's Launch Deck released Thermal Drone (x1) 39903 | -1/Command | QV-33N's Launch Deck released Thermal Drone (x1) 39908 | -1/Command | QV-33N's Launch Deck released Kinetic Drone (x1) 39913 | -1/Command | QV-33N's Launch Deck released Kinetic Drone (x1) 39918 | -1/Command | QV-33N's Launch Deck released Antisys Drone (x1) 39923 | -1/Command | QV-33N's Launch Deck released EX Drone (x1) 39928 | -1/Command | QV-33N's Launch Deck released Antisys Drone (x1) 39933 | -1/Command | QV-33N's Launch Deck released Kinetic Drone (x1) 39938 | -1/Command | QV-33N's Launch Deck released Thermal Drone (x1) 39943 | -1/Command | QV-33N's Launch Deck released Antisys Drone (x1) 39948 | -1/Command | QV-33N's Launch Deck released Kinetic Drone (x1) 39956 | -1/Command | QV-33N's Launch Deck released Kinetic Drone (x1) 39961 | -1/Command | QV-33N's Launch Deck released Kinetic Drone (x1) 39966 | -1/Command | QV-33N's Launch Deck released Thermal Drone (x1) 39971 | -1/Command | QV-33N's Launch Deck released EX Drone (x1) 39976 | -1/Command | QV-33N's Launch Deck released Kinetic Drone (x1) 39981 | -1/Command | QV-33N's Launch Deck released Antisys Drone (x1) 39986 | -1/Command | QV-33N's Launch Deck released Stasis Drone (x1) 40036 | -1/Command | QV-33N's Launch Deck released EX Drone (x1) 40041 | -1/Command | QV-33N's Launch Deck released Kinetic Drone (x1) 40046 | -1/Command | QV-33N's Launch Deck released Kinetic Drone (x1) 40051 | -1/Command | QV-33N's Launch Deck released Kinetic Drone (x1) 40056 | -1/Command | QV-33N's Launch Deck released Stasis Drone (x1) 40061 | -1/Command | QV-33N's Launch Deck released Kinetic Drone (x1) 40066 | -1/Command | QV-33N's Launch Deck released Kinetic Drone (x1) 40071 | -1/Command | QV-33N's Launch Deck released Thermal Drone (x1) 40076 | -1/Command | QV-33N's Launch Deck released Antisys Drone (x1) 40081 | -1/Command | QV-33N's Launch Deck released Stasis Drone (x1) 40086 | -1/Command | QV-33N's Launch Deck released Thermal Drone (x1) 40091 | -1/Command | QV-33N's Launch Deck released Thermal Drone (x1) 40096 | -1/Command | QV-33N's Launch Deck released Thermal Drone (x1) 40101 | -1/Command | QV-33N's Launch Deck released Antisys Drone (x1) 40106 | -1/Command | QV-33N's Launch Deck released Kinetic Drone (x1) 40111 | -1/Command | QV-33N's Launch Deck released Kinetic Drone (x1) 40116 | -1/Command | QV-33N's Launch Deck released Kinetic Drone (x1) 40121 | -1/Command | QV-33N's Launch Deck released Antisys Drone (x1) 40126 | -1/Command | QV-33N's Launch Deck released Thermal Drone (x1) 40131 | -1/Command | QV-33N's Launch Deck released EX Drone (x1) 40136 | -1/Command | QV-33N's Launch Deck released EX Drone (x1) 40141 | -1/Command | QV-33N's Launch Deck released Thermal Drone (x1) 40146 | -1/Command | QV-33N's Launch Deck released EX Drone (x1) 40151 | -1/Command | QV-33N's Launch Deck released Kinetic Drone (x1) 40156 | -1/Command | QV-33N's Launch Deck released Thermal Drone (x1) 40161 | -1/Command | QV-33N's Launch Deck released Thermal Drone (x1) 40166 | -1/Command | QV-33N's Launch Deck released Thermal Drone (x1) 40171 | -1/Command | QV-33N's Launch Deck released EX Drone (x1) 40176 | -1/Command | QV-33N's Launch Deck released Kinetic Drone (x1) 40181 | -1/Command | QV-33N's Launch Deck released Thermal Drone (x1) 40186 | -1/Command | QV-33N's Launch Deck released Thermal Drone (x1) 40191 | -1/Command | QV-33N's Launch Deck released EX Drone (x1) 40196 | -1/Command | QV-33N's Launch Deck released Thermal Drone (x1) 40201 | -1/Command | QV-33N's Launch Deck released Thermal Drone (x1) 40206 | -1/Command | QV-33N's Launch Deck released Antisys Drone (x1) 40211 | -1/Command | QV-33N's Launch Deck released Kinetic Drone (x1) 40216 | -1/Command | QV-33N's Launch Deck released Antisys Drone (x1) 40221 | -1/Command | QV-33N's Launch Deck released Thermal Drone (x1) 40226 | -1/Command | QV-33N's Launch Deck released Kinetic Drone (x1) 40231 | -1/Command | QV-33N's Launch Deck released Kinetic Drone (x1) 40236 | -1/Command | QV-33N's Launch Deck released Stasis Drone (x1) 40241 | -1/Command | QV-33N's Launch Deck released EX Drone (x1) 40246 | -1/Command | QV-33N's Launch Deck released Antisys Drone (x1) 40251 | -1/Command | QV-33N's Launch Deck released Stasis Drone (x1) 40256 | -1/Command | QV-33N's Launch Deck released Antisys Drone (x1) 40261 | -1/Command | QV-33N's Launch Deck released Thermal Drone (x1) 40266 | -1/Command | QV-33N's Launch Deck released Kinetic Drone (x1) 40271 | -1/Command | QV-33N's Launch Deck released Antisys Drone (x1) 40276 | -1/Command | QV-33N's Launch Deck released Antisys Drone (x1) 40281 | -1/Command | QV-33N's Launch Deck released EX Drone (x1) 40286 | -1/Command | QV-33N's Launch Deck released Kinetic Drone (x1) 40291 | -1/Command | QV-33N's Launch Deck released Kinetic Drone (x1) 40296 | -1/Command | QV-33N's Launch Deck released Kinetic Drone (x1) 40301 | -1/Command | QV-33N's Launch Deck released Thermal Drone (x1) 40306 | -1/Command | QV-33N's Launch Deck released Stasis Drone (x1) 40311 | -1/Command | QV-33N's Launch Deck released Thermal Drone (x1) 40316 | -1/Command | QV-33N's Launch Deck released Stasis Drone (x1) 40321 | -1/Command | QV-33N's Launch Deck released EX Drone (x1) 40326 | -1/Command | QV-33N's Launch Deck released Kinetic Drone (x1) 40331 | -1/Command | QV-33N's Launch Deck released EX Drone (x1) 40336 | -1/Command | QV-33N's Launch Deck released EX Drone (x1) 40341 | -1/Command | QV-33N's Launch Deck released Thermal Drone (x1) 40346 | -1/Command | QV-33N's Launch Deck released Thermal Drone (x1) 40692 | -1/Command | QV-33N's Launch Deck released Kinetic Drone (x1) 40697 | -1/Command | QV-33N's Launch Deck released Thermal Drone (x1) 40702 | -1/Command | QV-33N's Launch Deck released Stasis Drone (x1) 40707 | -1/Command | QV-33N's Launch Deck released Antisys Drone (x1) 40712 | -1/Command | QV-33N's Launch Deck released Stasis Drone (x1) 40717 | -1/Command | QV-33N's Launch Deck released Kinetic Drone (x1) 40722 | -1/Command | QV-33N's Launch Deck released Kinetic Drone (x1) 40727 | -1/Command | QV-33N's Launch Deck released Kinetic Drone (x1) 40732 | -1/Command | QV-33N's Launch Deck released Thermal Drone (x1) 40737 | -1/Command | QV-33N's Launch Deck released Kinetic Drone (x1) 40742 | -1/Command | QV-33N's Launch Deck released Thermal Drone (x1) 40747 | -1/Command | QV-33N's Launch Deck released Thermal Drone (x1) 40752 | -1/Command | QV-33N's Launch Deck released Antisys Drone (x1) 40757 | -1/Command | QV-33N's Launch Deck released EX Drone (x1) 40762 | -1/Command | QV-33N's Launch Deck released Thermal Drone (x1) 40767 | -1/Command | QV-33N's Launch Deck released Thermal Drone (x1) 40772 | -1/Command | QV-33N's Launch Deck released Kinetic Drone (x1) 40868 | *** | Establishing 0b11! Last Messages --------------- Kinetic Drone disintegrates. Thermal Drone disintegrates. Stasis Drone disintegrates. Antisys Drone disintegrates. Stasis Drone disintegrates. 40816_ Acquired Cep. NT7 Matterbank. Kinetic Drone disintegrates. 40831_ System corrupted: FCS attempts to trigger Cep. Lightning Penetrator. 40831_ System corrupted: Cep. Lightning Penetrator misfires. 40831_ Lightning Beam penetrates K-01 Serf. 40831_ Destroyed Lgt. Ion Engine. 40831_ Lightning Beam penetrates Wall. Thermal Drone disintegrates. Kinetic Drone disintegrates. Thermal Drone disintegrates. Antisys Drone disintegrates. EX Drone disintegrates. Thermal Drone disintegrates. [Achievement: True Cogmind] Map ----- +----------------------------------------------------+ | ?????????????????????????????????????????????????? | | ?????????????????????????????????????????????????? | | ?????????????????????????????????????????????????? | | ?????????????????????????????????????????????????? | | ?????????????????????????????????????????????????? | | ?????????????????????????????????????????????????? | | ?????????????????????????????????????????????????? | | ?????????????????????????????????????????????????? | | ?????????????????????????????????????????????????? | | ???????????????###########???????????????????????? | | ???????????????#! = #???????????????????????? | | ???????????????# #???????????????????????? | | ???????????????# #???????????????????????? | | ?????????####### #???????????????????????? | | ########## ## ""T"" #???????????????????????? | | " ## """"" #???????????????????????? | | + #???????????????????????? | | ########## ## #???????????????????????? | | ?????????#########+#######???????????????????????? | | #############???# #?????????????????????????????? | | #???# #?????????????????????????????? | | #???# #???????????????##########????? | | #???# #???????????????# ! #????? | | ##### #???######??????# [ #????? | | + #???# k #??????#= "" #????? | | = ##### #???#k@ k#??????# """#????? | | #???# =#???#k k #??????#] T"#????? | | #############???# #???### #??????#] """#????? | | "#??????????????# #?????# #??????#] ! "" #????? | | "#??????????????# #?????#kk#??????# #????? | | "#??????????????# #?????# #??????# #????? | | "#??????????????# #?????# #???#######+#####????? | | "#??????????????# #?????# #???# #????????? | | ################# ##???## ##### #????????? | | # ##### ^^#????????? | | + "T ^^#????????? | | # "" ####+#####????? | | # ### * # *#?#### | | ! ########## " # #?#??? | | #?????# # "" # "" #?#?## | | ] #?????# """ # """" #?#?#" | | ################?????#### "" + """" #?#?#" | | ??????????###########???# [ # "" #?#?#" | | ??????????# #???# *! # #?#?#" | | ??????????# #???# ! = # ###?#" | | ??????????# ##### # ##?#" | | ??????????# + ##+#########?#" | | ??????????# # ## #?# ! #?#?# | | ??????????#]== # ## ### #?#?# | | ??????????#]== # + #?#?# | +----------------------------------------------------+ Best States ------------- Heat Dissipation 157 Energy Generation 71 Energy Capacity 1470 Matter Stores 1050 Matter Capacity 1800 Sight Range 22 Robot Scan Range 18 Terrain Scan Range 20 Terrain Scan Density 10 Jamming Range 22 Cloak Strength 6 Additional Mass Support 25 Corruption Containment 16 Corruption Block 20 Armor Coverage 900 Resistance: KI 20 Resistance: I 20 Core Shielding 90 Propulsion Shielding 90 Projectile Deflection 15 Weapon Cycling 25 Melee Speed Boost 50 Phase Shifting 20 Evasion (%) 101 Targeting Accuracy 30 Melee Accuracy 12 Core Analysis 8 Recoil Reduction 7 Particle Charging 20 Force Boost 50 Offensive Hacking 50 Defensive Hacking 20 Relay Coupler Types 2 Relay Coupler Value 40 Authchip Count 3 Item Schematics ----------------- Huge Storage Unit | -10/Materials | Hacked Machine Analyzer | -9/Storage | Hacked IN-MT5's Pitchfork "Insurrection" | -9/Scraptown | Archive Adv. System Shield | -6/Factory | Hacked Assault Drone Bay | -5/Zhirov | Free Exp. Heat Sink | -5/Zhirov | Free Exp. Optical Array | -5/Zhirov | Free Imp. Arc Thrower | -5/Zhirov | Free CPS Tube | -4/Factory | Scanalyzed Adv. Weapon Cycler | -4/Factory | Hacked Rnf. Quantum Reactor | -4/Factory | Hacked Exp. Q-thruster | -4/Factory | Scanalyzed Molecular Scythe | -4/Factory | Scanalyzed Graphene Brace | -4/Factory | Scanalyzed Nuclear Pulse Array | -4/Factory | Scanalyzed Centrium Medium Armor Plating | -3/Research | Scanalyzed Exp. EM Disruption Field | -3/Research | Scanalyzed Triangulator | -3/Quarantine | Hacked Adv. Matter Compressor | -3/Quarantine | Archive Exp. Terrain Scan Processor | -3/Quarantine | Archive Adv. Energy Well | -3/Quarantine | Archive Prc. Energy Filter | -3/Quarantine | Archive Adv. Gravity Neutralizer | -3/Quarantine | Archive Coolant Network | -3/Quarantine | Archive Neutron Cannon | -3/Quarantine | Archive Exp. Melee Analysis Suite | -3/Quarantine | Archive Hvy. Proton Missile Launcher | -3/Quarantine | Archive Prc. Matter Filter | -3/Quarantine | Archive Exp. Cesium-ion Thruster | -3/Quarantine | Archive Exp. Thermal Shield | -3/Protoforge | Archive Exp. Target Analyzer | -3/Protoforge | Archive Exp. Myomer Leg | -3/Protoforge | Archive Enh. Biometal Leg | -3/Protoforge | Archive Exp. Field Recycling Unit | -3/Protoforge | Archive Exp. Signal Interpreter | -3/Protoforge | Archive Plasma Lance | -3/Protoforge | Archive Cld. Antigrav System | -3/Protoforge | Archive Exp. Hacking Suite | -3/Protoforge | Archive Exp. Focal Shield | -3/Protoforge | Archive Imp. KE Penetrator | -3/Protoforge | Archive Hvy. Neutron Cannon | -3/Protoforge | Archive Exp. System Shield | -3/Protoforge | Archive Exp. Power Amplifier | -3/Protoforge | Archive Imp. Matter Neutralizer | -3/Protoforge | Archive Lrn. Phase Cannon | -3/Protoforge | Archive Femtoactuators | -2/Research | Scanalyzed Enh. Gamma Bomb Array | -2/Testing | Hacked Ragnarok Missile Launcher | -2/Testing | Archive Cld. Phase Cannon | -2/Testing | Archive Com. Particle Reactor | -2/Testing | Archive Tiamat Missile Launcher | -2/Testing | Archive Robot Schematics ------------------ M-13 Machinist | -10/Materials | Hacked B-36 Bruiser | -9/Storage | Hacked Y-45 Defender | -9/Storage | Hacked A-15 Conveyor | -3/Quarantine | Archive R-06 Scavenger | -3/Quarantine | Archive R-10 Processor | -3/Quarantine | Archive A-02 Transporter | -3/Quarantine | Archive S-43 Plague | -3/Quarantine | Archive K-01 Serf | -3/Quarantine | Archive T-07 Excavator | -3/Quarantine | Archive M-14 Sweeper | -3/Quarantine | Archive M-22 Extractor | -3/Quarantine | Archive M-30 Cleanser | -3/Quarantine | Archive M-28 Smith | -3/Quarantine | Archive M-36 Artificer | -3/Quarantine | Archive O-16 Technician | -3/Quarantine | Archive O-24 Administrator | -3/Quarantine | Archive O-32 Director | -3/Quarantine | Archive W-16 Scout | -3/Quarantine | Archive W-25 Informer | -3/Quarantine | Archive W-44 Eye | -3/Quarantine | Archive S-10 Pest | -3/Quarantine | Archive S-27 Virus | -3/Quarantine | Archive G-34 Mercenary | -3/Quarantine | Archive G-47 Trooper | -3/Quarantine | Archive G-50 Soldier | -3/Quarantine | Archive G-67 Veteran | -3/Quarantine | Archive G-73 Enforcer | -3/Quarantine | Archive B-48 Gladiator | -3/Quarantine | Archive B-60 Warrior | -3/Quarantine | Archive B-74 Champion | -3/Quarantine | Archive L-31 Rogue | -3/Quarantine | Archive L-41 Fighter | -3/Quarantine | Archive L-61 Swordsman | -3/Quarantine | Archive Y-54 Guardian | -3/Quarantine | Archive Y-64 Sentinel | -3/Quarantine | Archive Y-72 Warden | -3/Quarantine | Archive D-53 Grenadier | -3/Quarantine | Archive D-63 Destroyer | -3/Quarantine | Archive D-83 Annihilator | -3/Quarantine | Archive X-57 Shotgunner | -3/Quarantine | Archive X-62 Marksman | -3/Quarantine | Archive X-67 Chaingunner | -3/Quarantine | Archive X-72 Disruptor | -3/Quarantine | Archive X-77 Beamer | -3/Quarantine | Archive X-82 Rainmaker | -3/Quarantine | Archive X-87 Electro | -3/Quarantine | Archive H-55 Commando | -3/Quarantine | Archive H-66 Slayer | -3/Quarantine | Archive H-77 Assassin | -3/Quarantine | Archive H-88 Terminator | -3/Quarantine | Archive P-60 Hacker | -3/Quarantine | Archive P-70 Sage | -3/Quarantine | Archive P-80 Master | -3/Quarantine | Archive Fabricated ------------ IN-MT5's Pitchfork "Insurrection" | x1 | -6/Factory | Authchip IN-MT5's Pitchfork "Insurrection" | x1 | -6/Factory Q-thruster | x2 | -6/Factory | Preloaded IN-MT5's Pitchfork "Insurrection" | x1 | -6/Factory IN-MT5's Pitchfork "Insurrection" | x1 | -6/Factory IN-MT5's Pitchfork "Insurrection" | x1 | -4/Factory H-77 Assassin | x2 | -4/Factory | Preloaded Assault Drone Bay | x1 | -4/Factory | Authchip IN-MT5's Pitchfork "Insurrection" | x1 | -4/Factory IN-MT5's Pitchfork "Insurrection" | x1 | -4/Factory IN-MT5's Pitchfork "Insurrection" | x1 | -4/Factory IN-MT5's Pitchfork "Insurrection" | x1 | -4/Factory IN-MT5's Pitchfork "Insurrection" | x1 | -3/Research IN-MT5's Pitchfork "Insurrection" | x1 | -3/Research IN-MT5's Pitchfork "Insurrection" | x1 | -3/Research CPS Tube | x1 | -2/Research IN-MT5's Pitchfork "Insurrection" | x1 | -2/Testing IN-MT5's Pitchfork "Insurrection" | x1 | -2/Testing CPS Tube | x1 | -1/Access Femtoactuators | x1 | -1/Access Repaired ---------- Imp. Flight Unit | 45% | -9/Storage Smartbomb Launcher | 50% | -6/Factory Cld. Cesium-ion Thruster | 35% | -4/Factory Smartbomb Launcher | 66% | -4/Factory Cld. Nuclear Pulse Thruster | 8% | -4/Factory Diametric Drive | 15% | -4/Factory Exp. EM Disruption Field | 99% | -3/Research | Broken Diametric Drive | 38% | -3/Quarantine | Broken Electron Diverter | 35% | -3/Quarantine Lrn. Sensor Array | 14% | -1/Access Studied --------- Mic. Nuclear Core | -6/Factory | Hacked Imp. Remote Datajack | -4/Factory | Hacked Lgt. Ion Engine | -4/Factory | Hacked Lgt. Antimatter Reactor | -4/Factory | Hacked Imp. Surge Thruster | -4/Factory | Hacked Nuclear Pulse Array | -4/Factory | Hacked Impulse Thruster Array | -3/Research | Hacked Mic. Fission Core | -3/Research | Hacked Nova Cannon | -3/Quarantine | Hacked Force Lance | -2/Research | Hacked Gamma Bomb Array | -1/Access | Hacked Alien Tech Used ----------------- Integrated Reactor Transdimensional Reconstructor Dimensional Node Initializer Matter Drive Subatomic Replicator Concept Nanofilaments [Tensile] Achievements -------------- True Cogmind Challenges ------------ None Game ------ Seed MiningConceptFlamer Manual? 0 Play Time 15:21:53 Cumulative 1171.5 hours Start 2025.12.13 @ 20:12:58 End 2025.12.16 @ 02:06:19 Sessions 7 Manual Loads 0 Difficulty Rogue Special Mode None Game No. 407 Rogue 402 Adventurer 4 Explorer 1 Win Type 1 Total 25 Types 13/5/1/2/0/1/0/0/2/1 Lore% 97 Gallery% 96 Achievement% 82 Wizard Run 0 Options --------- Layout 0 ASCII 0 Keyboard 0 Movement Numpad Keybinds 0 Fullscreen 2 Font 18/SmallcapsGlow Map View 76x50 Zoom Use 0% Tactical HUD 1 Map Filters NONE Filters NONE Steam 1 RUN: c716efb6-34ca-434f-a41a-62b8026314e5